Cogmind - Beta 13 X2 @@@ ROGUE MODE // 2024.02.05 @ 19:27:39 Player: Boris Result: Heading to fleet! Performance ------------- Evolutions (9) 4500 Regions Visited (36) 7200 Robots Destroyed (1201) 6005 Value Destroyed (71672) 71672 Prototype IDs (333) 6660 Alien Tech Used (21) 4200 Bonus (115097) 115097 TOTAL SCORE: 215334 Bonus ------- Triggered High Security 2500 High Alert Combat Kills 44126 Follower Combat Kills 2940 Network Hubs Disabled 600 Aligned with FarCom 300 Met Data Miner 300 Destroyed Z-Imprinter 1000 Triggered Deep Caves Wall 500 Exposed GOLEM Chamber 500 Met Warlord at Base 500 MAIN.C Attacked Warlord 500 Warlord Defense Kills 2850 Used Core Reset Matrix 3000 Met Warlord at Research 2000 Invited to Help at Command 2000 Scanned by Researcher 500 Pursued by Intercept 1000 Integrated Exoskeleton 5000 Recovered Sigix Corpse 2000 Destroyed MAIN.C Guards 500 Met MAIN.C 5000 Destroyed MAIN.C Shell 5000 Destroyed MAIN.C 10000 Met Warlord at Command 2000 Met Architect 300 Started Test 138-B 500 Destroyed A8 300 Destroyed A6 400 Destroyed A5 500 Destroyed A4 700 Destroyed A3 800 Destroyed A2 1000 Destroyed Architect 15000 Win 3000 Friendly Fire -2019 Cogmind --------- Core Integrity 407/1850 Matter 285/300 Energy 586/590 System Corruption 0% Temperature Cool (0) Movement Walking (30) Location To Fleet Rendezvous Parts ------- > --- POWER (1) -------- Zero-point Reactor > --- PROPULSION (3) --- Sigix Exoskeleton > --- UTILITY (5) ------ Medium Storage Unit Experimental Core Analyzer Improved Armor Integrity Analyzer Experimental Weapon Cycler Experimental Phase Shifter > --- WEAPON (2) ------- Sigix Shearcannon (fused) > --- INVENTORY (10) --- Experimental Core Analyzer Experimental Force Field Architect God Chip A Architect God Chip D Experimental System Purifier Spacefold Activator Microwarp Drive Sigix Corpse Peak State ------------ > --- POWER ------------ Micro Antimatter Reactor > --- PROPULSION ------- Sigix Exoskeleton > --- UTILITY ---------- Large Storage Unit Experimental Core Analyzer Experimental Core Analyzer Experimental Phase Shifter Experimental Force Field > --- WEAPON ----------- Sigix Shearcannon > --- INVENTORY -------- Experimental Target Analyzer Experimental Core Analyzer Improved Armor Integrity Analyzer Quantum Capacitor Experimental Reaction Control System Graphene Brace Antimissile System Transdimensional Reconstructor Terrabomb Spacefold Activator Microwarp Drive Sigix Broadsword [Rating: 255] Favorites ----------- Power Enhanced Fission Core Engine Heavy Ion Engine Power Core Enhanced Fission Core Reactor Quantum Reactor Propulsion Assembled Alloy Leg Treads Enhanced Armored Medium Treads Leg Assembled Alloy Leg Wheel Compact Wheel Hover Unit Zionite Glidesys I Flight Unit Impulse Thruster Array Utility Huge Storage Unit Device GOLEM Unit Storage Huge Storage Unit Processor Experimental Optical Array Hackware System Shield Protection Assembled Alloy Armor Artifact Microwarp Drive Weapon Assembled Focal Cannon Energy Gun Enhanced Force Rifle Energy Cannon Assembled Focal Cannon Ballistic Gun Enhanced Autogun Ballistic Cannon Improved Light Cannon Launcher Point Singularity Launcher Special Weapon RU-N14's Throwing Claymores Impact Weapon Powered Hammer Slashing Weapon Sigix Broadsword Piercing Weapon CR-A16's Pointy Stick Build | -11 -10 -10 -10 -9 -8 -7 -7 -7 -7 -7 -7 -6 -6 -6 -6 -6 -6 -5 -5 -5 -5 -5 -5 -4 -4 -4 -4 -3 -3 -3 -2 -2 -2 -1 -1 -1 ------- Run | Yrd Mat Min Exi Min Mat Fac Was Fac Low Low Dat Pro Fac Low Low Zio Dee Pro Fac Ext Cet Arc Hub Fac Upp Upp War Pro Res Arm Res Qua Sec Acc Com Ac0 Slots Evolved 18 | . . . . . 4 2 . . . . . . 2 . . . . . 2 . . . . 2 . . . . 2 . 2 . . 2 . . Power 2 | . . . . . . . . . . . . . . . . . . . 1 . . . . . . . . . . . 1 . . . . . Propulsion 3 | . . . . . 1 . . . . . . . 1 . . . . . . . . . . . . . . . 1 . . . . . . . Utility 11 | . . . . . 1 2 . . . . . . 1 . . . . . 1 . . . . 2 . . . . 1 . 1 . . 2 . . Weapon 2 | . . . . . 2 . . . . . . . . . . . . . . . . . . . . . . . . . . . . . . . Parts Attached 938 | 6 18 6 2 8 50 39 26 21 10 17 2 42 29 26 19 19 63 21 24 19 13 16 26 31 17 22 29 7 20 46 25 74 69 34 27 15 Power 56 | 1 2 . . 1 3 1 2 4 2 . . . 1 . . . 5 . . . 2 . 3 2 . . 1 . . 5 2 1 15 1 2 . Engine 15 | 1 2 . . 1 2 1 1 3 . . . . . . . . . . . . . . . . . . . . . 1 . . 3 . . . Core 11 | . . . . . 1 . . 1 2 . . . 1 . . . 2 . . . 1 . 1 . . . . . . . . . 2 . . . Reactor 30 | . . . . . . . 1 . . . . . . . . . 3 . . . 1 . 2 2 . . 1 . . 4 2 1 10 1 2 . Propulsion 87 | 2 6 1 . 2 14 4 4 2 . . . 2 1 . 3 . 9 . 4 3 4 2 . 3 2 . 2 . 1 5 4 3 4 . . . Treads 40 | 2 1 1 . . 13 4 4 2 . . . 2 1 . 3 . 4 . . . 1 2 . . . . . . . . . . . . . . Leg 36 | . 1 . . . . . . . . . . . . . . . 4 . 4 3 3 . . 2 2 . 2 . 1 3 4 3 4 . . . Wheel 8 | . 4 . . 2 1 . . . . . . . . . . . . . . . . . . 1 . . . . . . . . . . . . Hover 1 | . . . . . . . . . . . . . . . . . 1 . . . . . . . . . . . . . . . . . . . Flight 2 | . . . . . . . . . . . . . . . . . . . . . . . . . . . . . . 2 . . . . . . Utility 496 | 1 6 5 . 2 7 15 7 7 4 8 . 19 12 19 14 7 32 20 13 8 2 7 20 20 12 15 14 1 14 20 13 43 39 30 25 15 Device 360 | . 5 5 . 2 2 8 3 4 4 6 . 19 8 16 14 5 17 20 11 6 1 4 10 9 9 12 11 1 10 11 11 38 28 22 16 12 Storage 20 | 1 1 . . . . . . 1 . 1 . . . . . . 2 . 1 . . 1 1 2 . . 1 . . 2 1 . 3 . 2 . Processor 34 | . . . . . . 1 2 2 . . . . 2 2 . . . . . . . . . 3 2 . 2 . 1 3 1 . 5 5 3 . Hackware 29 | . . . . . 3 1 . . . 1 . . 1 . . . . . 1 2 . . 5 3 . . . . 1 3 . 3 . 2 1 2 Protection 45 | . . . . . 2 5 2 . . . . . 1 1 . 2 13 . . . 1 2 4 3 1 3 . . 2 1 . . 1 . . 1 Artifact 8 | . . . . . . . . . . . . . . . . . . . . . . . . . . . . . . . . 2 2 1 3 . Weapon 299 | 2 4 . 2 3 26 19 13 8 4 9 2 21 15 7 2 12 17 1 7 8 5 7 3 6 3 7 12 6 5 16 6 27 11 3 . . Energy Gun 73 | 2 . . . . . 1 . 1 . 1 . 2 6 . 1 2 9 . . 4 2 3 2 4 . . 8 4 3 10 2 6 . . . . Energy Cannon 24 | . . . . . . . . . . . . . . . . . 3 . . . . . . . . . . . . 3 3 9 4 2 . . Ballistic Gun 114 | . 4 . 2 1 21 8 11 4 3 2 2 17 7 5 . 7 . 1 5 . 1 4 1 1 2 3 . . . . 1 . 1 . . . Ballistic Cannon 4 | . . . . . . 1 . 1 . 1 . . . . . . . . . . . . . . . . . . . . . 1 . . . . Launcher 34 | . . . . 1 1 2 2 2 . 1 . . 1 1 . 1 . . 1 1 . . . 1 1 3 2 1 1 . . 8 3 . . . Special Weapon 8 | . . . . . . . . . . . . . . . . 1 1 . 1 3 2 . . . . . . . . . . . . . . . Impact Weapon 17 | . . . . . . 2 . . 1 4 . 2 1 1 1 1 2 . . . . . . . . . . . . . . 1 1 . . . Slashing Weapon 10 | . . . . . . 5 . . . . . . . . . . . . . . . . . . . . . . . . . 2 2 1 . . Piercing Weapon 15 | . . . . 1 4 . . . . . . . . . . . 2 . . . . . . . . 1 2 1 1 3 . . . . . . Special Melee Weapon . | . . . . . . . . . . . . . . . . . . . . . . . . . . . . . . . . . . . . . Unidentified Prototypes 86 | . 1 . . 1 3 2 . 7 . . . . . . . 2 14 . . . 3 . 1 4 . 1 11 . 1 1 . 11 13 3 4 3 Corrupted Parts 1 | . . . . . . . . . . . . . . . . . . . . . . . . . 1 . . . . . . . . . . . System Corruption 10 | . . . . . . . . . . . . . . . . . . . . . . . . . 10 . . . . . . . . . . . Parts Lost 92 | . 5 . . 1 . 2 6 3 . . . 1 . . . . 11 . 8 3 4 1 9 3 1 . . . . 24 . 4 6 . . . Power 16 | . 2 . . 1 . . 1 1 . . . . . . . . . . 1 . . . 5 . . . . . . 4 . . 1 . . . Propulsion 25 | . 3 . . . . . 2 . . . . 1 . . . . 3 . 2 1 2 1 1 1 1 . . . . 5 . 2 . . . . Utility 29 | . . . . . . 2 1 . . . . . . . . . 6 . 2 . 1 . 2 . . . . . . 10 . 1 4 . . . Weapon 22 | . . . . . . . 2 2 . . . . . . . . 2 . 3 2 1 . 1 2 . . . . . 5 . 1 1 . . . Highest Loss Streak 8 | . 2 . . 1 . 1 6 3 . . . 1 . . . . 5 . 5 1 2 1 3 2 1 . . . . 8 . 2 3 . . . To Critical Strikes 3 | . . . . . . . . . . . . . . . . . . . . . 3 . . . . . . . . . . . . . . . Average Slot Usage (%) 86 | . 96 100 76 100 98 99 82 90 84 84 70 88 99 99 100 99 84 93 87 83 83 87 84 79 92 94 70 73 75 70 84 82 66 66 65 71 Engine 1 | . 14 14 14 14 8 7 5 6 . . . . . . . . . . . . . . . . . . . . . . . . 1 . . . Core 2 | . . . . . . . . . 6 7 7 7 6 6 6 6 4 . . . 2 5 3 . . . . . . . . . . . . . Reactor 3 | . . . . . . . . . . . . . . . . . 1 6 5 5 5 5 5 7 10 10 5 5 4 3 7 7 7 9 9 9 Treads 8 | . 14 10 14 14 26 22 14 14 15 15 15 19 26 26 26 26 15 . . . . 4 4 . . . . . . . . . . . . . Leg 10 | . 4 3 . . . . . . . . . . . . . . 8 26 22 21 22 11 11 14 19 20 20 20 21 17 20 19 15 9 9 9 Device 10 | . 12 14 14 14 2 10 5 5 . 5 7 6 5 5 6 6 10 13 10 12 11 11 11 15 10 9 15 15 16 12 15 13 12 17 12 17 Storage 8 | . 14 14 14 14 9 7 . 4 7 7 7 7 6 6 6 6 8 13 10 10 11 10 7 9 9 10 10 10 5 3 4 6 9 9 9 9 Processor 8 | . . . . . . 1 20 23 23 15 15 15 16 19 20 17 10 6 5 3 . . . 1 9 10 5 5 4 9 12 8 4 11 12 18 Hackware 4 | . . . . . 14 15 1 . . 6 7 7 9 6 6 6 . . 1 2 . . 8 7 5 5 5 5 8 11 3 6 . 1 5 . Protection 3 | . . . . . . 2 4 2 . . . . 1 . . 1 2 . 4 1 8 10 4 4 5 5 1 5 7 3 3 1 . . . . Energy Gun 1 | . 12 . . . . . . . . . . . 7 . . 2 5 . . 3 3 . . 1 . . 3 6 4 3 2 1 . . . . Energy Cannon 6 | . . . . . . . . . . . . . . . . . 9 20 16 16 14 6 7 13 14 14 . . . . 11 11 7 8 9 9 Ballistic Gun 11 | . 14 28 5 19 33 27 26 29 24 23 1 20 14 24 24 19 1 5 4 . . 15 11 . 4 5 . . . . . . . . . . Naked Turns . | . . . . . . . . . . . . . . . . . . . . . . . . . . . . . . . . . . . . . Heaviest Build 199 | 13 50 50 50 52 68 72 70 108 107 109 103 116 118 125 122 119 148 148 183 192 188 178 177 182 180 199 160 149 156 156 162 161 136 66 59 54 Greatest Support 150 | 40 40 16 16 16 68 76 97 105 105 105 105 105 140 140 140 128 130 88 112 100 100 95 80 105 110 105 120 120 150 150 146 146 150 60 60 60 Greatest Overweight (x) 53 | . 4 3 3 5 2 1 . 1 1 1 . 1 . . . . 4 1 2 2 5 53 2 2 2 1 1 1 1 4 1 1 1 1 . . Average Overweight (x) . | . 2 3 2 3 . . . . . . . . . . . . . 1 1 1 1 22 1 1 1 . . 1 . . . . . . . . Largest Inventory Capacity 25 | 8 20 20 20 20 20 20 20 25 25 25 25 25 25 25 25 25 25 25 25 25 25 25 25 25 25 25 25 25 25 25 15 15 15 15 15 10 Average Capacity 22 | 7 19 20 20 20 20 20 6 16 25 25 25 25 25 25 25 25 25 25 24 25 25 24 25 24 25 25 25 25 25 22 7 15 14 15 12 10 Most Carried 25 | 3 20 20 20 20 20 20 20 25 25 25 25 25 25 25 25 25 25 25 25 25 25 25 25 25 25 25 25 25 25 25 15 15 15 15 15 10 Average Carried 20 | 1 12 18 19 18 19 19 6 11 23 24 25 24 23 24 24 24 20 24 24 24 23 24 23 23 24 23 24 24 22 19 6 14 14 14 11 9 Final Capacity 25 | 8 20 20 20 20 20 20 5 25 25 25 25 25 25 25 25 25 25 25 25 25 25 25 25 25 25 25 25 25 25 5 15 15 15 15 10 10 Final Carried 25 | 3 18 20 18 19 20 19 5 25 23 25 25 24 25 25 25 25 25 25 25 23 25 25 25 25 24 25 25 25 25 4 15 15 15 15 10 9 Class Distribution -------------------- 20% | Scavenger-Golem 16% | Golem 11% | Gunner 8% | Skirmisher 8% | Mutant 7% | Alien-Sigix 5% | Hacker-Gunner 3% | Scavenger-Mutant Dominant Class ---------------- Mutant | -10/Materials Mutant | -10/Mines Mutant | -10/Exiles Mutant | -9/Mines Hacker-Gunner | -8/Materials Hacker-Gunner | -7/Factory Gunner | -7/Waste Gunner | -7/Factory Gunner | -7/Lower Caves Skirmisher | -7/Lower Caves Mutant | -7/Data Miner Mutant | -6/Proximity Caves Gunner | -6/Factory Skirmisher | -6/Lower Caves Skirmisher | -6/Lower Caves Assassin | -6/Zion Golem | -6/Deep Caves Golem | -5/Proximity Caves Golem | -5/Factory Golem | -5/Extension Golem | -5/Cetus Scavenger-Golem | -5/Archives Scavenger-Golem | -5/Hub_04(d) Hacker-Golem | -4/Factory Scavenger-Golem | -4/Upper Caves Scavenger-Golem | -4/Upper Caves Scavenger-Mutant | -4/Warlord Skirmisher | -3/Proximity Caves Hacker-Skirmisher | -3/Research Hacker-Skirmisher | -3/Armory Scavenger-Golem | -2/Research Scavenger-Gunner | -2/Quarantine Alien-Sigix | -2/Section 7 Alien-Sigix | -1/Access Alien-Sigix | -1/Command Alien-Sigix | -1/Access_0 Resources | -11 -10 -10 -10 -9 -8 -7 -7 -7 -7 -7 -7 -6 -6 -6 -6 -6 -6 -5 -5 -5 -5 -5 -5 -4 -4 -4 -4 -3 -3 -3 -2 -2 -2 -1 -1 -1 ----------- Run | Yrd Mat Min Exi Min Mat Fac Was Fac Low Low Dat Pro Fac Low Low Zio Dee Pro Fac Ext Cet Arc Hub Fac Upp Upp War Pro Res Arm Res Qua Sec Acc Com Ac0 Matter Collected 19429 | 254 692 176 . 165 1845 1235 1151 682 670 451 . 1032 737 469 456 98 857 411 594 396 126 157 725 396 243 423 294 70 210 416 266 1347 1514 415 279 177 Remotely 2093 | . . . . . . 168 130 337 385 100 . 496 232 245 . . . . . . . . . . . . . . . . . . . . . . Salvage Created 78691 | 20 886 155 . 161 1918 1269 1684 688 541 305 . 996 1402 622 621 . 977 1449 4192 3212 689 696 2603 2251 630 911 1438 424 2273 1216 749 2518 12355 18097 6853 3890 Parts 2850 | 3 61 17 . 13 121 80 14 41 27 17 . 39 72 32 31 . 32 70 179 103 34 41 134 103 20 30 56 9 102 47 24 141 266 462 216 213 Haulers Intercepted 25 | . 2 . . . 5 2 . 5 . . . . 1 . . . . . 1 1 . . 1 . . . . . 2 . . 2 . 3 . . Recyclers Shooed 9 | 1 1 . . 1 . . . . . . . . 3 . . . . . 1 . . . . . . . . . . . . . 1 1 . . Parts Field Recycled . | . . . . . . . . . . . . . . . . . . . . . . . . . . . . . . . . . . . . . Retrieved Matter . | . . . . . . . . . . . . . . . . . . . . . . . . . . . . . . . . . . . . . Parts Self-Destructed 265 | . . . . . . . . . 31 18 . 52 . 32 31 1 . 70 . . . . . . 7 11 . 12 . . . . . . . . Prevented 30 | . . . . . . . . . 1 . . 5 . 1 . . . . . . . . . . 6 17 . . . . . . . . . . Kills | -11 -10 -10 -10 -9 -8 -7 -7 -7 -7 -7 -7 -6 -6 -6 -6 -6 -6 -5 -5 -5 -5 -5 -5 -4 -4 -4 -4 -3 -3 -3 -2 -2 -2 -1 -1 -1 ------- Run | Yrd Mat Min Exi Min Mat Fac Was Fac Low Low Dat Pro Fac Low Low Zio Dee Pro Fac Ext Cet Arc Hub Fac Upp Upp War Pro Res Arm Res Qua Sec Acc Com Ac0 Combat Hostiles Destroyed 1124 | . 15 4 . 4 37 33 6 16 12 10 . 20 16 13 12 . 42 27 66 78 12 4 32 32 7 11 20 5 24 17 9 60 160 208 74 38 Melee 5 | . . . . . . . . . . . . . . . . . 2 . . . . . . . . . . . . 1 . 1 1 . . . Guns 226 | . 15 4 . 1 37 23 6 10 12 7 . 20 14 13 12 . 1 7 11 1 . . 19 5 1 . 1 1 1 4 . . . . . . Cannons 653 | . . . . . . . . . . . . . . . . . 4 20 43 26 8 4 13 24 2 5 . . . 2 7 32 143 208 74 38 AOE 211 | . . . . 3 . 10 . 6 . 3 . . 2 . . . 33 . 11 51 4 . . 3 1 1 18 3 20 8 . 24 10 . . . Classes Destroyed 36 | 1 8 . . . 4 2 1 2 . . . 1 1 1 . . 4 . 1 2 . . . . . 1 1 1 . . . 1 2 . 2 . Worker 43 | . 7 2 . 2 2 . . 1 . . . . 2 . . . . . 9 1 . . 3 2 . . . . 1 . . 1 3 6 1 . Builder 28 | . 1 . . 1 . . . 2 . . . . 5 . . . . . 2 2 . . 2 . . . . . 6 . . . 1 6 . . Tunneler 3 | 1 . 1 . . . . . . . . . . . . . . . . 1 . . . . . . . . . . . . . . . . . Hauler 25 | . 2 . . . 5 2 . 5 . . . . 1 . . . . . 1 1 . . 1 . . . . . 2 . . 2 . 3 . . Recycler 15 | . 1 . . 1 . . . 1 . . . . 3 . . . . . 2 2 . . 1 . . . . . . . . 1 . 2 1 . Carrier 8 | . . . . . . . . . . . . . . . . . . . . . . . . . . . . 1 . . . . 2 5 . . Minesweeper 1 | . . . . . . . . . . . . . . 1 . . . . . . . . . . . . . . . . . . . . . . Mechanic 19 | . . . . . 1 1 . . . . . . . . . . . . 1 2 . . . . . . . . . . . . 7 7 . . Operator 20 | . 2 . . . 3 2 . . . . . . 1 . . . . . 1 . . 8 1 1 . . . . . . . 1 . . . . Drone 3 | . . . . . . . . . . . . 2 . . . . . . . 1 . . . . . . . . . . . . . . . . Watcher 40 | . 2 . . . 2 . . 1 . . . . 1 . . . . . 5 . 1 . 1 2 . . . . 5 3 1 2 5 6 3 . Swarmer 122 | . 3 3 . 3 11 20 . 1 2 6 . 4 6 6 6 . . 9 8 4 . . . . . . 2 . . 3 . . 5 16 4 . Saboteur 24 | . . . . . . . . . . . . . . . . . . . 2 1 . . . . . . 1 . . . . 1 8 11 . . Grunt 373 | . 12 1 . 1 15 7 . . 8 4 . 7 6 3 4 . . 9 30 33 7 . 10 15 4 4 6 3 10 . 4 25 63 64 18 . Brawler 54 | . . . . . . . . 2 . . . . . . . . . 1 4 7 1 . 1 1 . 1 . . . . . 3 13 16 4 . Duelist 41 | . . . . . . 1 . 1 1 . . . . . . . . 2 3 6 . . . 2 . 1 . . . 3 . 4 12 3 2 . Protector 38 | . . . . . . . . 3 . . . . . . . . . . 1 5 . . . . . . 2 1 . 1 . 5 10 8 2 . Researcher 3 | . . . . . . . . . . . . . . . . . . . . . . . . . . . . . . . . 1 2 . . . Sentry 72 | . . . . . 9 3 . 1 1 . . 2 . 2 2 . . 1 4 8 . 4 5 4 1 1 . . 3 . . . 5 12 4 . Demolisher 3 | . . . . . . . . . . . . . . . . . . . . 1 . . . . . . . . . . 1 . . . 1 . Specialist 14 | . . . . . . . . . . . . . . . . . . . . 2 . . 2 . . . . . . 4 . . 2 . 4 . Hunter 82 | . . . . . 1 1 . 4 . . . 3 . . . . . 2 3 4 . . 8 2 2 2 2 . 4 2 2 9 4 20 7 . Programmer 112 | . . . . . . 1 . 4 . . . . 3 2 . . . 2 11 4 . . 5 8 . 1 5 1 6 4 . 13 15 20 7 . Heavy 5 | . . . . . 1 . . . . . . . . . . . . . . . . . 1 . . . . . 1 . . . 1 1 . . Behemoth 13 | . . . . . . . . . . . . . 1 . . . . 1 . 2 . . . . . . . . . . . . 1 6 2 . Compactor 6 | . . . . . . . 6 . . . . . . . . . . . . . . . . . . . . . . . . . . . . . Cetus Guard 4 | . . . . . . . . . . . . . . . . . . . . . 4 . . . . . . . . . . . . . . . M Guard 2 | . . . . . . . . . . . . . . . . . . . . . . . . . . . . . . . . . . . 2 . M Shell/Atk 1 | . . . . . . . . . . . . . . . . . . . . . . . . . . . . . . . . . . . 1 . M Shell/Def 2 | . . . . . . . . . . . . . . . . . . . . . . . . . . . . . . . . . . . 2 . Enhanced Grunt 20 | . . . . . . . . . . . . . . . . . 1 . . . . . . . . . . . . . . . . . . 19 Enhanced Sentry 4 | . . . . . . . . . . . . . . . . . . . . . . . . . . . . . . . . . . . . 4 Enhanced Hunter 8 | . . . . . . . . . . . . . . . . . . . . . . . . . . . . . . . . . . . . 8 Tracker 7 | . . . . . . . . . . . . . . . . . . . . . . . . . . . . . . . . . 5 2 . . Combat Programmer 6 | . . . . . . . . . . . . . . . . . . . . . . . . . . . . . . . . . 3 1 2 . Investigator 4 | . . . . . . . . . . . . . . . . . . . . . . . . . . . . . . . . . 2 2 . . Striker 15 | . . . . . . . . . . . . . . . . . . . . . . . . . . . . . . . . . 5 10 . . Executioner 31 | . . . . . . . . . . . . . . . . . . . . . . . . . . . 3 . . . 2 . 6 18 2 . Alpha 7 3 | . . . . . . . . . . . . . . . . . . . . . . . . . . . . . . . . . 2 . 1 . Z-Technician 5 | . . . . . . . . . . . . . . . . . 5 . . . . . . . . . . . . . . . . . . . Z-Light 1 | . . . . . . . . . . . . . . . . . 1 . . . . . . . . . . . . . . . . . . . Assembler 2 | . . . . . . . . . . . . . . . . . 2 . . . . . . . . . . . . . . . . . . . Assembled 37 | . . . . . . . . . . . . . . . . . 36 . . . . . . . . . . . . . . . . 1 . . Golem 5 | . . . . . . . . . . . . . . . . . 5 . . . . . . . . . . . . . . . . . . . Wasp 1 | . . . . . . . . 1 . . . . . . . . . . . . . . . . . . . . . . . . . . . . Thug 3 | . . . . . . . . . . . . 1 . . . . . . . 1 . . . . . . . . . . . . . . 1 . Savage 3 | . . . . . . . . . . . . . . . . . . . . 1 . . . . 1 . . . . . . . . . 1 . Butcher 1 | . . . . . . . . . . . . 1 . . . . . . . . . . . . . . . . . . . . . . . . Fireman 3 | . . . . . . . . . . . . . . . . . . . . . . . . . . . . . . . . . . . 3 . Mutant 1 | . . . . . . . . . . . . . . . . . . . . . . . . . . 1 . . . . . . . . . . Commander 1 | . . . . . . . . . . . . . . . . . . . . . . . . . . . 1 . . . . . . . . . Troll 1 | . . . . . . . . . . . . . . . . . . . . . . . . . . . . . . . . . . . 1 . Best Kill Streak 39 | 1 6 3 . 5 8 10 2 13 5 4 . 4 6 5 5 . 39 4 20 36 5 4 7 9 4 3 10 5 7 5 5 10 30 27 38 6 Combat Bots Only 37 | . 3 3 . 3 7 8 2 11 5 4 . 4 5 5 5 . 37 4 15 35 5 2 5 9 4 3 10 4 5 5 5 10 28 20 36 6 Max Kills in Single Turn 26 | 1 1 1 . 2 2 6 1 5 2 2 . 2 3 3 2 . 26 1 4 10 2 1 2 2 2 2 5 2 4 2 1 4 3 3 3 2 Gunslinging 2 | . . . . . 1 1 . 1 1 . . 1 1 2 1 . . . . . . . . . . . . . . . . . . . . . Exploded 26 | . . . . 2 . 4 . 5 . 2 . . 2 . . . 26 . 3 10 2 . . 2 1 1 3 2 3 2 . 4 3 . . . Melee 1 | . . . . . . . . . . . . . . . . . 1 . . . . . . . . . . . . 1 . 1 1 . . . Uniques/NPCs Destroyed 11 | . . . . . . . . . . . . . . . . . 1 . . . . . . . . . . . . . . . . . 3 7 Z-Imprinter (-6/Deep Caves) Warlord (-1/Command) MAIN.C Shell (-1/Command) MAIN.C (-1/Command) A8 (-1/Access_0) A6 (-1/Access_0) A5 (-1/Access_0) A4 (-1/Access_0) A2 (-1/Access_0) Architect (-1/Access_0) A3 (-1/Access_0) Combat | -11 -10 -10 -10 -9 -8 -7 -7 -7 -7 -7 -7 -6 -6 -6 -6 -6 -6 -5 -5 -5 -5 -5 -5 -4 -4 -4 -4 -3 -3 -3 -2 -2 -2 -1 -1 -1 -------- Run | Yrd Mat Min Exi Min Mat Fac Was Fac Low Low Dat Pro Fac Low Low Zio Dee Pro Fac Ext Cet Arc Hub Fac Upp Upp War Pro Res Arm Res Qua Sec Acc Com Ac0 Hostile Shots Fired 3816 | . 97 14 . 13 115 126 4 103 24 21 . 91 67 25 13 . 82 56 295 181 46 17 234 195 52 26 45 3 45 343 62 322 373 253 152 321 Missed 1351 | . 22 4 . 3 32 39 . 25 7 8 . 33 17 6 3 . 16 21 82 53 12 7 53 78 15 6 14 2 13 136 15 103 121 140 81 184 Damage Taken 43065 | . 858 125 . 100 1253 1275 317 1308 270 202 . 974 944 318 229 . 1990 562 3462 2449 635 235 3409 2214 604 354 557 18 1088 3724 994 3677 3883 1471 1323 2243 Core 5626 | . 109 45 . . 103 122 43 131 61 . . 33 76 23 22 . 142 43 240 242 13 . 351 169 49 53 83 18 18 627 126 176 770 474 511 753 Absorbed by Shields 3216 | . . . . . . . . . . . . . . . . . . . . 33 . . . . . . 99 . . . . 1790 1197 . 97 . Reduced by Siege Mode 206 | . . . . . . . . 75 18 12 . 21 . . . . . . . . . . 80 . . . . . . . . . . . . . Redirected to Core 120 | . . . . . . . . . . . . . . . . . . . . . . . . . . . . . . . . 120 . . . . Redirected to Shielding 280 | . . . . . . . . . . . . . . . . . 126 . . . . . . . . . . . 136 18 . . . . . . Ignored by Resistances 9386 | . . . . . . 63 . . . . . . . . . . 99 . 532 310 127 48 342 450 128 77 118 4 221 105 198 178 1311 1485 1318 2272 Regen/Repaired (Parts) 3899 | . 88 . . . 647 354 283 431 17 . . . 80 . . . . . 86 . . . . 423 . . 5 . . . . 700 785 . . . Core Remaining (%) 51 | 100 . . . 38 81 . . . . . . 44 . . . . . 64 . . . . 15 . . . . 67 . 50 . . 33 . . 22 Volleys Fired 2332 | 2 88 15 2 10 93 52 70 36 25 16 . 36 42 28 19 . 72 66 140 72 23 80 87 62 16 25 15 4 38 57 25 141 290 371 117 97 Largest 5 | 2 2 2 2 2 4 4 4 4 4 4 . 4 4 4 4 . 4 4 4 4 4 4 4 4 4 5 1 3 1 4 5 5 2 1 1 1 Hottest 505 | 90 90 40 40 40 100 114 114 128 108 114 . 228 247 180 180 . 228 108 108 156 156 156 155 160 110 160 300 300 300 309 385 505 200 180 180 180 Shots Fired 4596 | 4 175 30 4 14 370 199 135 137 82 49 . 134 135 71 65 . 122 171 384 191 62 108 284 190 48 52 15 8 38 82 76 285 290 372 117 97 Gun 2264 | 4 175 30 4 12 370 195 131 128 82 47 . 134 134 71 65 . 80 35 82 32 6 80 155 38 8 7 15 8 38 65 4 9 20 . . . Cannon 2229 | . . . . . . . . . . . . . . . . . 39 136 296 139 54 28 129 152 36 26 . . . 17 72 258 261 372 117 97 Launcher 80 | . . . . 2 . 4 4 9 . 2 . . 1 . . . . . . 8 . . . . 4 19 . . . . . 18 9 . . . Special 23 | . . . . . . . . . . . . . . . . . 3 . 6 12 2 . . . . . . . . . . . . . . . Kinetic 1781 | . 111 30 4 12 370 195 131 128 82 47 . 128 104 62 52 . 28 35 82 9 . . 138 16 8 7 . . . . 2 . . . . . Thermal 1873 | 4 64 . . . . . . . . . . 6 30 9 13 . 80 136 296 162 60 108 146 174 36 26 15 6 38 55 74 260 75 . . . Explosive 80 | . . . . 2 . 4 4 9 . 2 . . 1 . . . 3 . 6 20 2 . . . . . . . . . . 18 9 . . . Electromagnetic 62 | . . . . . . . . . . . . . . . . . 11 . . . . . . . 4 19 . . . 2 . 7 19 . . . Slashing 773 | . . . . . . . . . . . . . . . . . . . . . . . . . . . . . . . . . 187 372 117 97 Entropic 27 | . . . . . . . . . . . . . . . . . . . . . . . . . . . . 2 . 25 . . . . . . Robot Hit Streak 30 | 3 13 13 . 2 17 10 27 16 25 11 . 14 19 11 14 . 21 17 22 20 22 10 30 19 12 6 17 7 13 12 7 13 18 17 30 12 Robot Miss Streak 18 | . 4 1 . 1 5 4 3 6 2 3 . 4 5 2 1 . 5 3 5 4 1 6 6 2 1 5 5 2 6 5 1 6 8 17 15 18 Penetration Max 1 | . . . . . . . . . 1 . . 1 1 1 . . . 1 1 1 . . 1 . . . . . . . . . 1 1 1 1 Secondary Targets 38 | . 3 . . . 4 5 2 4 5 . . 5 4 3 1 . . . . . . . 1 . . . . . . 1 . . . . . . Max Gunslinging Chain 2 | . 1 . . . 1 1 1 1 2 . . 1 1 2 1 . . . . . . . 1 . . . . . . 1 . . . . . . Capacitor 712 | . . . . . . . . . . . . . . . . . . . . . . . . . . . . . . . . 57 257 288 101 9 Autonomous 36 | . . . . . . . . . . . . . . . . . . . . . . . 36 . . . . . . . . . . . . . Shots Hit Robots 2959 | 3 119 20 . 11 206 114 110 86 65 26 . 80 95 47 37 . 88 94 212 130 46 69 189 119 24 22 7 5 26 51 37 184 237 226 97 77 Core Hits 3071 | 1 47 10 . 7 88 66 28 66 28 15 . 33 44 24 19 . 70 37 130 213 20 32 80 80 11 19 65 19 106 63 17 132 432 600 212 257 Critical Kills 44 | . . . . . . 1 . . . . . 7 5 4 2 . 2 6 4 . . 1 3 2 1 . . . . 1 1 2 2 . . . Critical Parts Destroyed 53 | . . . . . . . . . 1 2 . 2 9 7 2 . 1 6 4 . . 9 7 . . 1 . . . 2 . . . . . . Critical Strikes 199 | . 2 . . . . 1 1 . 1 2 . 9 16 12 5 . 5 13 11 3 3 10 10 3 1 1 . 1 . 3 1 2 30 27 13 13 Burn 5 | . 2 . . . . . . . . . . . 1 . . . . . . . . . . 1 . . . 1 . . . . . . . . Meltdown 5 | . . . . . . . . . . . . . . . . . . . . . . . . . . . . . . . 1 2 2 . . . Destroy 98 | . . . . . . 1 1 . 1 2 . 9 14 12 5 . 4 13 8 . 1 10 10 2 1 1 . . . 3 . . . . . . Corrupt 1 | . . . . . . . . . . . . . . . . . . . . . . . . . . . . . . . . . 1 . . . Smash 1 | . . . . . . . . . . . . . 1 . . . . . . . . . . . . . . . . . . . . . . . Sever 88 | . . . . . . . . . . . . . . . . . . . 3 3 2 . . . . . . . . . . . 27 27 13 13 Impale 1 | . . . . . . . . . . . . . . . . . 1 . . . . . . . . . . . . . . . . . . . Melee Attacks 160 | . . . . 4 13 23 . . 7 8 . 2 6 1 3 5 16 . . . . . . . . . 10 . 1 9 . 13 35 4 . . Kinetic 6 | . . . . . . . . . . . . . . . . . . . . . . . . . . . . . . . . . 6 . . . Impact 43 | . . . . . . 10 . . 7 8 . 2 6 1 3 5 1 . . . . . . . . . . . . . . . . . . . Slashing 59 | . . . . . . 13 . . . . . . . . . . . . . . . . . . . . . . . . . 13 29 4 . . Piercing 52 | . . . . 4 13 . . . . . . . . . . . 15 . . . . . . . . . 10 . 1 9 . . . . . . Sneak Attacks 17 | . . . . 3 1 2 . . . . . . 2 . . . . . . . . . . . . . . . 1 . . 6 2 . . . Combat Hostiles . | . . . . . . . . . . . . . . . . . . . . . . . . . . . . . . . . . . . . . Follow-up Attacks . | . . . . . . . . . . . . . . . . . . . . . . . . . . . . . . . . . . . . . Damage Inflicted 260300 | 48 1478 248 . 542 3421 3141 2498 3083 1175 681 . 1774 3180 1030 941 . 5976 3737 11661 16569 2774 2073 7498 6393 1333 1425 4163 841 5887 4473 1595 15704 48906 53297 21201 21554 Guns 30074 | 48 1467 248 . 101 3368 1973 1980 1576 1175 455 . 1774 2664 1030 908 . 1163 158 1316 545 47 1190 3421 672 159 181 91 136 221 1539 51 39 378 . . . Cannons 178281 | . . . . . . . . . . . . . . . . . 1079 3570 7637 5075 2118 883 4047 4798 648 556 . . . 329 1544 6978 43007 53257 21201 21554 Explosions 46231 | . . . . 245 . 983 518 1501 . 203 . . 338 . . . 3283 . 2453 10492 531 . . 906 473 688 4072 705 5606 2518 . 7358 3318 40 . . Melee 4521 | . . . . 196 42 185 . . . . . . 178 . . . 329 . . . . . . . . . . . 60 73 . 1329 2129 . . . Ramming 328 | . 11 . . . 11 . . 6 . 23 . . . . 33 . . 9 47 . . . 30 17 53 . . . . 14 . . 74 . . . Kinetic 23141 | . 920 248 . 101 3368 1973 1980 1576 1175 455 . 1702 1972 885 715 . 449 158 1316 156 . . 3095 329 159 181 . . . . 21 . 207 . . . Thermal 60359 | 48 547 . . . . . . . . . . 72 692 145 193 . 1675 3570 7697 5464 2165 2073 4373 5336 716 556 4163 739 5827 3567 1574 6868 2299 . . . Explosive 31657 | . . . . 245 . 983 518 1501 . 203 . . 338 . . . 3217 . 2393 10492 531 . . 644 . . . . . . . 7274 3318 . . . Electromagnetic 2282 | . . . . . . . . . . . . . . . . . 184 . . . . . . 67 405 688 . . . 31 . 233 634 40 . . Impact 178 | . . . . . . . . . . . . . 178 . . . . . . . . . . . . . . . . . . . . . . . Slashing 140765 | . . . . . . 185 . . . . . . . . . . 122 . 208 457 78 . . . . . . . . . . 1329 42374 53257 21201 21554 Piercing 700 | . . . . 196 42 . . . . . . . . . . . 329 . . . . . . . . . . . 60 73 . . . . . . Entropic 890 | . . . . . . . . . . . . . . . . . . . . . . . . . . . . 102 . 788 . . . . . . Highest Corruption 21 | . 2 2 2 2 1 6 4 6 6 6 6 6 . 2 . . 1 . 4 3 3 3 12 3 3 2 2 . 1 21 . 10 20 4 5 4 Average Corruption 3 | . 2 2 2 2 1 1 4 4 6 6 6 6 . 1 . . 1 . 1 2 3 2 3 2 1 1 2 . 1 9 . 4 12 3 3 3 Corruption Purged 21 | . . . . . . 2 . . . . . . . 2 . . 1 . 4 . . 3 . . . . . . . . . . . . 5 4 Corruption Blocked 38 | . . . . . . . . . . . . . . . . . . . . . . . . . . . . . . . 18 . 20 . . . Effects 566 | . 14 13 4 2 19 6 21 33 39 54 3 31 . 10 . . . . 33 16 5 1 25 20 3 5 . . 4 36 . 29 87 32 14 7 Message Errors 138 | . 5 4 1 1 7 . 5 4 10 9 1 7 . 3 . . . . 4 6 1 . 7 8 1 1 . . 2 7 . 9 26 7 1 1 Matter Fused 117 | . 2 2 1 . 2 1 5 5 9 14 1 8 . 1 . . . . 8 4 3 . 5 7 1 2 . . . 9 . 6 12 7 1 1 Heat Flow Errors 66 | . . 4 . . 2 1 2 4 3 8 . 5 . 2 . . . . 8 . . . 3 . . . . . . 3 . 2 10 5 2 2 Energy Discharges 75 | . 3 2 2 1 2 1 4 6 6 9 . 1 . 1 . . . . . 3 1 . 2 1 1 1 . . 2 8 . 5 5 5 3 . Parts Rejected 9 | . . . . . . . 1 2 2 . . 1 . . . . . . . 2 . . 1 . . . . . . . . . . . . . Parts Fused 3 | . 1 . . . . . . . . . . . . . . . . . . . . . . . . . . . . . . . 1 1 . . Data Loss (minor) 59 | . 1 1 . . 4 1 2 2 5 7 . 6 . 1 . . . . 4 . . . . 1 . . . . . 3 . 3 8 4 5 1 Data Loss (major) 26 | . . . . . . 1 . 3 2 1 1 1 . 1 . . . . 4 . . . 2 1 . . . . . 1 . 1 2 1 2 2 Misfires 26 | . 1 . . . 1 . 1 5 1 3 . . . . . . . . 3 . . 1 2 1 . 1 . . . . . 1 4 1 . . Alerts 15 | . . . . . . 1 . 1 1 3 . . . . . . . . 2 1 . . . 1 . . . . . 2 . 1 1 1 . . Misdirections 6 | . . . . . . . . . . . . . . . . . . . . . . . . . . . . . . 2 . . 4 . . . Weapon Failures 26 | . 1 . . . 1 . 1 1 . . . 2 . 1 . . . . . . . . 3 . . . . . . 1 . 1 14 . . . Overload Shots 1 | . . . . . . . . . . . . . . . . . . . . . . . . . . . . . . . . . 1 . . . Overflow Damage 5945 | . . . . 87 2 114 8 28 . 62 . . 131 . 30 . 82 149 496 231 41 . 89 422 18 30 25 1 109 44 83 877 1427 982 221 156 Projectiles 3884 | . . . . . . . . . . . . . . . . . . 149 462 86 41 . 89 320 . 30 . . . . 83 143 1122 982 221 156 Explosions 1162 | . . . . 37 . 9 8 28 . 47 . . 35 . . . 82 . 32 145 . . . 100 14 . 25 1 79 44 . 332 144 . . . Melee 899 | . . . . 50 2 105 . . . 15 . . 96 . 30 . . . 2 . . . . 2 4 . . . 30 . . 402 161 . . . Knockbacks 6 | . . . . . . . . . . 1 . . 1 . . . . . . . . . 2 . . . . . . . . . 2 . . . Impact 5 | . . . . . . . . . . 1 . . 1 . . . . . . . . . 2 . . . . . . . . . 1 . . . Kinetic . | . . . . . . . . . . . . . . . . . . . . . . . . . . . . . . . . . . . . . Secondary 1 | . . . . . . . . . . . . . . . . . . . . . . . . . . . . . . . . . 1 . . . Self-Inflicted Damage 1361 | . . . . . . . 153 . . . . . . . . . 66 . . . . . . 92 41 102 . . 259 456 . 101 91 . . . Shots 62 | . . . . . . . 4 . . . . . . . . . 1 . . . . . . 2 3 12 . . 15 23 . 1 1 . . . Rammed 13 | . 4 . . . 3 . . 2 . 2 . . . . 1 . . . . . . . . . . . . . . 1 . . . . . . Targets Rammed 25 | . 4 . . . 3 . . 2 . 2 . . . . 1 . . 1 2 . . . 3 1 2 . . . . 1 . . 3 . . . Kicked 12 | . . . . . . . . . . . . . . . . . . 1 2 . . . 3 1 2 . . . . . . . 3 . . . Crushed . | . . . . . . . . . . . . . . . . . . . . . . . . . . . . . . . . . . . . . Highest Temperature 378 | 42 237 238 . . 303 224 211 242 231 265 . 294 298 250 209 . 320 181 251 129 15 210 230 378 148 180 351 324 306 213 186 285 177 151 . 24 Average Temperature 71 | 21 65 101 . . 79 49 69 63 89 96 . 76 94 69 77 . 65 60 52 37 8 54 63 140 52 46 152 115 67 75 74 42 42 51 . 24 Received Heat Transfer 6632 | . 432 66 . 36 414 174 . 102 126 99 . 184 162 36 57 . 424 63 963 546 189 45 612 512 57 18 8 . 81 27 174 284 250 144 146 201 Effects 21 | . 1 1 . . 1 . 1 4 1 . . . . . . . . . 3 . . . 3 4 . . . . 2 . . . . . . . Energy Bleed 3 | . . . . . 1 . . 1 . . . . . . . . . . . . . . . . . . . . 1 . . . . . . . Interference 18 | . 1 1 . . . . 1 3 1 . . . . . . . . . 3 . . . 3 4 . . . . 1 . . . . . . . Siege Activations 22 | . . . . . . . . 2 5 2 . 4 . . . . . . . . . . 9 . . . . . . . . . . . . . Total Turns 316 | . . . . . . . . 32 49 40 . 56 . . . . . . . . . . 139 . . . . . . . . . . . . . Longest Duration 37 | . . . . . . . . 23 17 24 . 37 . . . . . . . . . . 28 . . . . . . . . . . . . . Robots Corrupted 14 | . . . . . . . . . . . . . . . . . 2 . . . . . . . 3 5 . . . . . 1 3 . . . Combat Hostiles 14 | . . . . . . . . . . . . . . . . . 2 . . . . . . . 3 5 . . . . . 1 3 . . . Parts Fried 16 | . . . . . 1 . . . . . . . 2 . . . . . . . . . . . 4 9 . . . . . . . . . . Impact Corruptions 9 | . . . . . . . . . . 3 . . 1 . 1 . . . 1 . . . . 1 2 . . . . . . . . . . . Robots Melted 14 | . . . . . . . . . . . . . . . . . . . 1 . . . . . . . 1 1 3 2 2 2 2 . . . Combat Hostiles 14 | . . . . . . . . . . . . . . . . . . . 1 . . . . . . . 1 1 3 2 2 2 2 . . . Parts Melted 151 | . 5 . . . . . . . . . . . . 1 . . 4 1 5 3 . 3 7 5 . 2 16 3 29 16 1 8 12 29 1 . Heat Transferred 50882 | 124 1562 . . . . . . . . . . 111 1190 222 296 . 1666 1900 4237 3287 1199 2350 2900 3400 425 300 5000 1149 7910 4207 1065 4627 1755 . . . Parts Sabotaged 3 | . . . . . . . . . . . . . . . . . . . . 3 . . . . . . . . . . . . . . . . Parts Stolen . | . . . . . . . . . . . . . . . . . . . . . . . . . . . . . . . . . . . . . Parts Stripped 12 | . . . . . . . . . . . . . . . . . . . . . . . . . . . . . . . . . 12 . . . Power Chain Reactions 4 | . . . . . . . . . . . . . . . . . 1 . 1 . . . . . 1 . . . . . . 1 . . . . Missiles Intercepted . | . . . . . . . . . . . . . . . . . . . . . . . . . . . . . . . . . . . . . Alert | -11 -10 -10 -10 -9 -8 -7 -7 -7 -7 -7 -7 -6 -6 -6 -6 -6 -6 -5 -5 -5 -5 -5 -5 -4 -4 -4 -4 -3 -3 -3 -2 -2 -2 -1 -1 -1 ------- Run | Yrd Mat Min Exi Min Mat Fac Was Fac Low Low Dat Pro Fac Low Low Zio Dee Pro Fac Ext Cet Arc Hub Fac Upp Upp War Pro Res Arm Res Qua Sec Acc Com Ac0 Peak Influence 11439 | 5 250 150 . 116 524 928 306 1619 . . . . 982 . . . . . 1881 3128 1986 1295 1065 1134 . . . . 506 295 348 1311 4856 11439 7893 . Initial 7320 | . 3 46 . . 44 14 294 . . . . . 961 . . . . . 102 779 1751 1100 196 506 . . . . . 265 54 195 718 2913 7320 . Average 1118 | 1 91 75 . 74 165 378 117 867 . . . . 633 . . . . . 610 1241 1855 702 501 510 . . . . 190 127 109 752 2203 7952 7623 . Maximum Alert Level 5 | . 1 . . . 2 3 1 5 . . . . 3 . . . . . 5 5 5 4 3 4 . . . . 2 1 1 4 5 5 5 . Low Security (%) 25 | 100 95 100 . 100 57 38 62 6 . . . . . . . . . . 32 . . . 7 10 . . . . 55 78 82 . . . . . Level 1 14 | . 4 . . . 34 29 37 5 . . . . 16 . . . . . 22 . . . 28 36 . . . . 38 21 17 9 . . . . Level 2 23 | . . . . . 8 11 . 30 . . . . 52 . . . . . 6 . . 68 42 30 . . . . 5 . . 35 . . . . Level 3 15 | . . . . . . 20 . 24 . . . . 30 . . . . . 18 56 . 21 21 17 . . . . . . . 39 16 . . . Level 4 8 | . . . . . . . . 29 . . . . . . . . . . 14 23 . 9 . 5 . . . . . . . 15 33 . . . Level 5 3 | . . . . . . . . 3 . . . . . . . . . . 6 4 75 . . . . . . . . . . . 3 5 83 . High Security 9 | . . . . . . . . . . . . . . . . . . . . 15 24 . . . . . . . . . . . 46 94 16 . Max Security . | . . . . . . . . . . . . . . . . . . . . . . . . . . . . . . . . . . . . . Sterilizations 2 | . . . . . . . . . . . . . . . . . . . . . . . . . . . . . . . . . 1 1 . . Squads Dispatched 224 | . 4 . . 1 5 9 . 8 . 1 . 1 4 . 1 . . 1 20 16 . . 18 15 . . . 2 6 4 1 23 40 38 6 . Investigation 34 | . 2 . . 1 2 3 . 2 . 1 . 1 1 . 1 . . 1 4 . . . 7 3 . . . . . . 1 3 . 1 . . Extermination 28 | . . . . . . 1 . 1 . . . . 2 . . . . . 5 . . . 2 5 . . . . 2 2 . 5 3 . . . Reinforcement 32 | . 2 . . . 3 3 . . . . . . 1 . . . . . 3 2 . . 5 1 . . . . 2 2 . 3 3 . 2 . Assault 106 | . . . . . . 2 . 4 . . . . . . . . . . 4 14 . . 1 3 . . . 2 2 . . 9 27 34 4 . Garrison 15 | . . . . . . . . 1 . . . . . . . . . . 4 . . . 3 3 . . . . . . . 3 . 1 . . Intercept 9 | . . . . . . . . . . . . . . . . . . . . . . . . . . . . . . . . . 7 2 . . Searches Triggered 1 | . . . . . . . . . . . . . 1 . . . . . . . . . . . . . . . . . . . . . . . Construction Impeded 5 | . . . . . . . . . . . . . 1 . . . . . . 2 . . 2 . . . . . . . . . . . . . Haulers Reinforced 5 | . . . . . . 1 . . . . . . . . . . . . 1 . . . . . . . . . 2 . . 1 . . . . Active Scanning Responses . | . . . . . . . . . . . . . . . . . . . . . . . . . . . . . . . . . . . . . Cargo Convoy Interrupts 1 | . . . . . . . . 1 . . . . . . . . . . . . . . . . . . . . . . . . . . . . Stealth | -11 -10 -10 -10 -9 -8 -7 -7 -7 -7 -7 -7 -6 -6 -6 -6 -6 -6 -5 -5 -5 -5 -5 -5 -4 -4 -4 -4 -3 -3 -3 -2 -2 -2 -1 -1 -1 --------- Run | Yrd Mat Min Exi Min Mat Fac Was Fac Low Low Dat Pro Fac Low Low Zio Dee Pro Fac Ext Cet Arc Hub Fac Upp Upp War Pro Res Arm Res Qua Sec Acc Com Ac0 Distress Signals 49 | . 3 . . . 4 . . 1 . . . 1 . . . . . . 3 2 . . 1 . . . . . 1 1 5 1 4 4 18 . Communications Jammed 188 | . . . . . . . . 32 . . . . 11 . . . . . . 1 . 1 90 1 . . . . 42 9 1 . . . . . Distress Signals 175 | . . . . . . . . 32 . . . . 9 . . . . . . 1 . 1 85 . . . . . 37 9 1 . . . . . Times Spotted 1521 | . 31 10 . 5 49 38 6 43 14 9 . 24 22 12 6 1 87 23 80 135 16 35 48 39 7 10 50 4 35 38 13 77 218 186 94 56 Peak Tracking Total 37 | . 4 5 9 3 6 8 3 12 6 3 . 4 4 5 3 1 37 5 7 28 5 1 6 5 4 4 12 3 5 12 6 7 19 23 19 15 Tactical Retreats 59 | . 1 2 . . 1 4 . . . . . 1 . 1 . . . 4 . 4 . . 1 . . 2 . . 1 . 1 3 9 12 7 5 Traps | -11 -10 -10 -10 -9 -8 -7 -7 -7 -7 -7 -7 -6 -6 -6 -6 -6 -6 -5 -5 -5 -5 -5 -5 -4 -4 -4 -4 -3 -3 -3 -2 -2 -2 -1 -1 -1 ------- Run | Yrd Mat Min Exi Min Mat Fac Was Fac Low Low Dat Pro Fac Low Low Zio Dee Pro Fac Ext Cet Arc Hub Fac Upp Upp War Pro Res Arm Res Qua Sec Acc Com Ac0 Traps Triggered 11 | . 2 . . . . 1 . . . . . . . . . . . . . 3 . . 1 . . . . . . . . 1 . 3 . . Indirectly . | . . . . . . . . . . . . . . . . . . . . . . . . . . . . . . . . . . . . . Trap Hack Attempts . | . . . . . . . . . . . . . . . . . . . . . . . . . . . . . . . . . . . . . Triggered . | . . . . . . . . . . . . . . . . . . . . . . . . . . . . . . . . . . . . . Disarmed . | . . . . . . . . . . . . . . . . . . . . . . . . . . . . . . . . . . . . . Reprogrammed 29 | . . . . . 7 . . . . . . . . . . . . . . . . . . . . . . . . 16 . . . . 6 . Reused 12 | . . . . . 4 . . . . . . . . . . . 1 . . . . . . . . . . . . 7 . . . . . . Traps Extracted . | . . . . . . . . . . . . . . . . . . . . . . . . . . . . . . . . . . . . . Installed 2 | . . . . . . . . . . . . . . . . . 2 . . . . . . . . . . . . . . . . . . . Triggered 26 | . . . . . 4 . . . . . . 1 . 2 . . . . . . . . . . . . 11 1 . 7 . . . . . . Fabricated Traps 2 | . . . . . . . . . . . . . . . . . 2 . . . . . . . . . . . . . . . . . . . Most Traps Carried 2 | . . . . . . . . . . . . . . . . . 2 . . . . . . . . . . . . . . . . . . . Objects Rigged 6 | . . . . . . . . . . . . . 6 . . . . . . . . . . . . . . . . . . . . . . . Machines | -11 -10 -10 -10 -9 -8 -7 -7 -7 -7 -7 -7 -6 -6 -6 -6 -6 -6 -5 -5 -5 -5 -5 -5 -4 -4 -4 -4 -3 -3 -3 -2 -2 -2 -1 -1 -1 ---------- Run | Yrd Mat Min Exi Min Mat Fac Was Fac Low Low Dat Pro Fac Low Low Zio Dee Pro Fac Ext Cet Arc Hub Fac Upp Upp War Pro Res Arm Res Qua Sec Acc Com Ac0 Machines Disabled 185 | . 1 . 1 . 1 6 . 11 1 2 . 2 1 1 2 . 1 2 15 7 1 4 8 14 . 1 . . 1 5 1 14 29 31 9 13 Max in Single Turn 3 | . 1 . 1 . 1 2 . 1 1 1 . 1 1 1 1 . 1 1 3 1 1 1 2 3 . 1 . . 1 1 1 2 2 1 2 2 Garrison Access 14 | . . . . . 1 1 . 1 . . . . . . . . . . . . . . 1 1 . . . . 1 . 1 1 1 5 . . Phase Generator 1 | . . . . . . . . . . . . . . . . . . . . . . . . . . . . . . . . . . . 1 . Network Hub 3 | . . . . . . . . . . . . . . . . . . . . . . . 3 . . . . . . . . . . . . . Energy Cycler 2 | . . . . . . . . . . . . . . . . . . . . . . . . . . . . . . . . . . 2 . . Machines Repaired . | . . . . . . . . . . . . . . . . . . . . . . . . . . . . . . . . . . . . . Machines Dismantled . | . . . . . . . . . . . . . . . . . . . . . . . . . . . . . . . . . . . . . Machines Sabotaged 2 | . . . . . . . . . . . . . . . . . . . . . . . 2 . . . . . . . . . . . . . Overloaded Fab Kills 3 | . . . . . . . . . . . . . . . . . . . 3 . . . . . . . . . . . . . . . . . Hacking | -11 -10 -10 -10 -9 -8 -7 -7 -7 -7 -7 -7 -6 -6 -6 -6 -6 -6 -5 -5 -5 -5 -5 -5 -4 -4 -4 -4 -3 -3 -3 -2 -2 -2 -1 -1 -1 --------- Run | Yrd Mat Min Exi Min Mat Fac Was Fac Low Low Dat Pro Fac Low Low Zio Dee Pro Fac Ext Cet Arc Hub Fac Upp Upp War Pro Res Arm Res Qua Sec Acc Com Ac0 Machines Accessed 134 | . 7 . 2 1 16 9 . 6 . 2 4 1 8 . 1 . . 1 18 3 . . 8 6 2 . 4 . 6 5 2 7 3 3 7 2 Terminals 80 | . 5 . . . 9 4 . 4 . 1 . 1 6 . 1 . . 1 10 3 . . 7 1 . . . . 4 4 2 5 3 2 7 . Fabricators 12 | . . . . . . 1 . 1 . . . . 1 . . . . . 4 . . . . 3 . . . . 1 1 . . . . . . Repair Stations 12 | . 1 . . . 2 3 . 1 . . . . 1 . . . . . 2 . . . . 1 . . . . . . . 1 . . . . Recycling Units 4 | . 1 . . . 2 . . . . . . . . . . . . . 1 . . . . . . . . . . . . . . . . . Scanalyzers 3 | . . . . . 2 . . . . . . . . . . . . . . . . . . . . . . . . . . . . 1 . . Garrison Access 7 | . . . . . 1 1 . . . . . . . . . . . . 1 . . . 1 1 . . . . 1 . . 1 . . . . Total Hacks 569 | . 21 . 2 1 97 30 . 14 . 7 29 6 54 . 4 . . 9 44 6 . . 22 27 2 . 13 . 23 41 6 37 5 11 32 26 Successful 346 | . 14 . 2 1 68 14 . 4 . 7 29 6 28 . 4 . . 9 18 2 . . 17 16 2 . 13 . 6 21 2 16 1 2 18 26 Failed 222 | . 7 . . . 28 16 . 10 . . . . 26 . . . . . 26 4 . . 5 11 . . . . 17 20 4 21 4 9 14 . Catastrophic 37 | . 2 . . . 4 2 . 1 . . . . 2 . . . . . 3 1 . . 1 1 . . . . 6 5 1 2 2 2 2 . Database Lockouts 1 | . . . . . 1 . . . . . . . . . . . . . . . . . . . . . . . . . . . . . . . Manual 213 | . 9 . 1 . 46 11 . . . . . . 29 . . 2 . . 21 4 . . 17 12 . . 1 . 6 18 . 18 1 . 17 . Terminals 358 | . 14 . . . 62 16 . 8 . 6 . 6 44 . 4 . . 9 25 6 . . 21 8 . . . . 17 34 6 30 5 5 32 . Fabricators 40 | . . . . . . 3 . 2 . . . . 5 . . . . . 7 . . . . 13 . . . . 3 7 . . . . . . Repair Stations 59 | . 5 . . . 22 8 . 4 . . . . 5 . . . . . 8 . . . . 3 . . . . . . . 4 . . . . Recycling Units 6 | . 2 . . . 2 . . . . . . . . . . . . . 2 . . . . . . . . . . . . . . . . . Scanalyzers 16 | . . . . . 10 . . . . . . . . . . . . . . . . . . . . . . . . . . . . 6 . . Garrison Access 16 | . . . . . 1 3 . . . . . . . . . . . . 2 . . . 1 3 . . . . 3 . . 3 . . . . Terminal Hacks 200 | . 6 . 2 1 21 3 . . . 7 29 6 14 . 4 . . 9 6 . . . 6 2 2 . 13 . 4 13 2 11 1 1 11 26 Record 66 | . . . 1 . . . . . . 6 11 6 1 . 4 . . 9 . . . . . . 1 . 12 . . . . . . . . 15 Part Schematic 16 | . 1 . . . 1 . . . . . 11 . 2 . . . . . . . . . 1 . . . . . . . . . . . . . Robot Schematic 5 | . . . . . . . . . . . 4 . . . . . . . . . . . . . . . . . . 1 . . . . . . Robot Analysis 5 | . 1 . . . . . . . . . . . 1 . . . . . . . . . . . . . . . . . 1 2 . . . . Prototype ID Bank 10 | . . . . . 2 . . . . . 3 . 1 . . . . . 1 . . . . . . . . . . . . 1 . . 2 . Open Door 5 | . . . . 1 . . . . . 1 . . . . . . . . . . . . . . 1 . 1 . . . . . 1 . . . Level Access Points 2 | . . . . . . . . . . . . . . . . . . . . . . . 1 . . . . . 1 . . . . . . . Branch Access Points 6 | . . . . . 1 . . . . . . . . . . . . . 1 . . . . 1 . . . . 1 . 1 . . 1 . . Emergency Access Points 3 | . . . . . . . . . . . . . . . . . . . . . . . . . . . . . . 2 . . . . 1 . Machine Index 3 | . . . . . . 1 . . . . . . . . . . . . . . . . . . . . . . . . . 1 . . 1 . Terminal Index 1 | . . . . . . . . . . . . . . . . . . . . . . . 1 . . . . . . . . . . . . . Fabricator Index 1 | . . . . . . . . . . . . . . . . . . . . . . . . . . . . . . 1 . . . . . . Recycling Unit Index 1 | . . . . . . . . . . . . . . . . . . . . . . . . . . . . . . . . . . . 1 . Scanalyzer Index 1 | . . . . . . . . . . . . . . . . . . . . . . . . . . . . . . 1 . . . . . . Alert Level 6 | . . . . . 2 1 . . . . . . 1 . . . . . . . . . . . . . . . 1 . . 1 . . . . Unreport Threat 19 | . . . . . 6 . . . . . . . 3 . . . . . 2 . . . . . . . . . 1 2 . 3 . . 2 . Locate Traps 3 | . . . . . 2 . . . . . . . . . . . . . . . . . . . . . . . . . . . . . 1 . Reprogram Traps 6 | . . . . . 2 . . . . . . . . . . . . . . . . . . . . . . . . 3 . . . . 1 . Patrol Status 2 | . . . . . . . . . . . . . . . . . . . 1 . . . . . . . . . . 1 . . . . . . Recall Extermination 1 | . . . . . . . . . . . . . . . . . . . . . . . . 1 . . . . . . . . . . . . Recall Reinforcements 1 | . . . . . . . . . . . . . . . . . . . . . . . 1 . . . . . . . . . . . . . Hauler Manifests 7 | . 2 . . . 1 . . . . . . . 1 . . . . . 1 . . . . . . . . . . 1 . 1 . . . . Registered Components 2 | . 1 . . . 1 . . . . . . . . . . . . . . . . . . . . . . . . . . . . . . . Registered Prototypes 1 | . . . . . . . . . . . . . . . . . . . . . . . . . . . . . . . . 1 . . . . Zone Layout 13 | . 1 . . . 3 1 . . . . . . 4 . . . . . . . . . 2 . . . . . . 1 . 1 . . . . Derelict Proto ID Bank 1 | . . . 1 . . . . . . . . . . . . . . . . . . . . . . . . . . . . . . . . . Disengage Seal 2 | . . . . . . . . . . . . . . . . . . . . . . . . . . . . . . . . . . . 2 . Gate Test 138-A 1 | . . . . . . . . . . . . . . . . . . . . . . . . . . . . . . . . . . . . 1 Gate Test 138-B 4 | . . . . . . . . . . . . . . . . . . . . . . . . . . . . . . . . . . . . 4 Gate Test 138-C 3 | . . . . . . . . . . . . . . . . . . . . . . . . . . . . . . . . . . . . 3 Gate Test 138-END 3 | . . . . . . . . . . . . . . . . . . . . . . . . . . . . . . . . . . . . 3 Fabricator Hacks 17 | . . . . . . 1 . 2 . . . . 2 . . . . . 2 . . . . 6 . . . . . 4 . . . . . . Network Status 1 | . . . . . . . . . . . . . . . . . . . . . . . . 1 . . . . . . . . . . . . Load Schematic 9 | . . . . . . 1 . 1 . . . . 1 . . . . . 1 . . . . 3 . . . . . 2 . . . . . . Build 7 | . . . . . . . . 1 . . . . 1 . . . . . 1 . . . . 2 . . . . . 2 . . . . . . Repair Station Hacks 43 | . 4 . . . 22 6 . 2 . . . . 2 . . . . . 3 . . . . 2 . . . . . . . 2 . . . . Scan Component 22 | . 2 . . . 11 3 . 1 . . . . 1 . . . . . 2 . . . . 1 . . . . . . . 1 . . . . Repair 21 | . 2 . . . 11 3 . 1 . . . . 1 . . . . . 1 . . . . 1 . . . . . . . 1 . . . . Recycling Unit Hacks 4 | . 1 . . . 2 . . . . . . . . . . . . . 1 . . . . . . . . . . . . . . . . . Report Inventory 3 | . 1 . . . 1 . . . . . . . . . . . . . 1 . . . . . . . . . . . . . . . . . Retrieve Components 1 | . . . . . 1 . . . . . . . . . . . . . . . . . . . . . . . . . . . . . . . Scanalyzer 7 | . . . . . 6 . . . . . . . . . . . . . . . . . . . . . . . . . . . . 1 . . Insert Component 4 | . . . . . 3 . . . . . . . . . . . . . . . . . . . . . . . . . . . . 1 . . Analyze 3 | . . . . . 3 . . . . . . . . . . . . . . . . . . . . . . . . . . . . . . . Garrison Access Hacks 5 | . . . . . 1 . . . . . . . . . . . . . . . . . 1 1 . . . . 1 . . 1 . . . . Seal Access 5 | . . . . . 1 . . . . . . . . . . . . . . . . . 1 1 . . . . 1 . . 1 . . . . Unauthorized Hacks 70 | . 3 . . . 16 4 . . . . . . 10 . . . . . 6 2 . . 10 5 . . . . 1 4 . 2 . . 7 . Terminals 62 | . 2 . . . 15 4 . . . . . . 10 . . . . . 4 2 . . 10 2 . . . . 1 3 . 2 . . 7 . Track 11 | . . . . . 4 1 . . . . . . 2 . . . . . . 1 . . 2 . . . . . . . . 1 . . . . Assimilate 11 | . . . . . 4 . . . . . . . 1 . . . . . 2 1 . . . . . . . . . 1 . . . . 2 . Botnet 27 | . 2 . . . 6 2 . . . . . . 5 . . . . . 2 . . . 1 1 . . . . 1 1 . 1 . . 5 . Detonate 1 | . . . . . . . . . . . . . 1 . . . . . . . . . . . . . . . . . . . . . . . Operators 5 | . . . . . 1 1 . . . . . . 1 . . . . . . . . . . 1 . . . . . 1 . . . . . . Sabotage 7 | . . . . . . . . . . . . . . . . . . . . . . . 7 . . . . . . . . . . . . . Fabricators 5 | . . . . . . . . . . . . . . . . . . . 1 . . . . 3 . . . . . 1 . . . . . . Prioritize 3 | . . . . . . . . . . . . . . . . . . . . . . . . 2 . . . . . 1 . . . . . . Liberate 1 | . . . . . . . . . . . . . . . . . . . . . . . . 1 . . . . . . . . . . . . Overload 1 | . . . . . . . . . . . . . . . . . . . 1 . . . . . . . . . . . . . . . . . Repair Stations . | . . . . . . . . . . . . . . . . . . . . . . . . . . . . . . . . . . . . . Recycling Units 2 | . 1 . . . . . . . . . . . . . . . . . 1 . . . . . . . . . . . . . . . . . Mask 1 | . . . . . . . . . . . . . . . . . . . 1 . . . . . . . . . . . . . . . . . Tunnel 1 | . 1 . . . . . . . . . . . . . . . . . . . . . . . . . . . . . . . . . . . Scanalyzers 1 | . . . . . 1 . . . . . . . . . . . . . . . . . . . . . . . . . . . . . . . Extract 1 | . . . . . 1 . . . . . . . . . . . . . . . . . . . . . . . . . . . . . . . Garrison Access . | . . . . . . . . . . . . . . . . . . . . . . . . . . . . . . . . . . . . . Data Cores Recovered 2 | . . . . . . 1 . . . . . . . . . . . . . . . . . 1 . . . . . . . . . . . . Used . | . . . . . . . . . . . . . . . . . . . . . . . . . . . . . . . . . . . . . Hacking Detections 100 | . 5 . . . 12 8 . 6 . 1 . 1 8 . 1 . . 1 17 3 . . 5 5 . . . . 5 4 2 6 2 3 5 . Full Trace Events 21 | . . . . . 2 3 . 2 . 1 . 1 1 . 1 . . 1 3 . . . . 3 . . . . . . . 2 . 1 . . Feedback Events 2 | . . . . . 1 1 . . . . . . . . . . . . . . . . . . . . . . . . . . . . . . Corruption 2 | . . . . . 1 1 . . . . . . . . . . . . . . . . . . . . . . . . . . . . . . Feedback Blocked . | . . . . . . . . . . . . . . . . . . . . . . . . . . . . . . . . . . . . . Robot Schematics Acquired 10 | . . . . . . . . . . . 4 . . . . 3 . . . . . . . . . . . . . 1 . . 2 . . . Robots Built 3 | . . . . . . . . . . . . . . . . . . . . . . . . . . . . . . 3 . . . . . . Authchips 2 | . . . . . . . . . . . . . . . . . . . . . . . . . . . . . . 2 . . . . . . Time 92 | . . . . . . . . . . . . . . . . . . . . . . . . . . . . . . 92 . . . . . . Total Robot Build Rating 21 | . . . . . . . . . . . . . . . . . . . . . . . . . . . . . . 21 . . . . . . Part Schematics Acquired 47 | . 1 . . . 17 . . . . . 11 . 2 . . 15 . . . . . . 1 . . . . . . . . . . . . . Parts Built 7 | . . . . . . . . 1 . . . . 1 . . . . . 1 . . . . 4 . . . . . . . . . . . . Authchips . | . . . . . . . . . . . . . . . . . . . . . . . . . . . . . . . . . . . . . Time 305 | . . . . . . . . 25 . . . . 102 . . . . . 84 . . . . 94 . . . . . . . . . . . . Total Part Build Rating 35 | . . . . . . . . 1 . . . . 8 . . . . . 6 . . . . 20 . . . . . . . . . . . . Parts Repaired 21 | . 2 . . . 11 3 . 1 . . . . 1 . . . . . 1 . . . . 1 . . . . . . . 1 . . . . Time 862 | . 52 . . . 501 87 . 30 . . . . 22 . . . . . 44 . . . . 108 . . . . . . . 18 . . . . Parts Recycled . | . . . . . . . . . . . . . . . . . . . . . . . . . . . . . . . . . . . . . Recycled Matter . | . . . . . . . . . . . . . . . . . . . . . . . . . . . . . . . . . . . . . Retrieved Matter . | . . . . . . . . . . . . . . . . . . . . . . . . . . . . . . . . . . . . . Retrieved Components 9 | . . . . . 9 . . . . . . . . . . . . . . . . . . . . . . . . . . . . . . . Parts Scanalyzed 2 | . . . . . 2 . . . . . . . . . . . . . . . . . . . . . . . . . . . . . . . Part Schematics Acquired 2 | . . . . . 2 . . . . . . . . . . . . . . . . . . . . . . . . . . . . . . . Parts Damaged 1 | . . . . . 1 . . . . . . . . . . . . . . . . . . . . . . . . . . . . . . . Bothacking | -11 -10 -10 -10 -9 -8 -7 -7 -7 -7 -7 -7 -6 -6 -6 -6 -6 -6 -5 -5 -5 -5 -5 -5 -4 -4 -4 -4 -3 -3 -3 -2 -2 -2 -1 -1 -1 ------------ Run | Yrd Mat Min Exi Min Mat Fac Was Fac Low Low Dat Pro Fac Low Low Zio Dee Pro Fac Ext Cet Arc Hub Fac Upp Upp War Pro Res Arm Res Qua Sec Acc Com Ac0 Used RIF Installer . | . . . . . . . . . . . . . . . . . . . . . . . . . . . . . . . . . . . . . Robots Hacked . | . . . . . . . . . . . . . . . . . . . . . . . . . . . . . . . . . . . . . Non-combat . | . . . . . . . . . . . . . . . . . . . . . . . . . . . . . . . . . . . . . Combat . | . . . . . . . . . . . . . . . . . . . . . . . . . . . . . . . . . . . . . Robot Hacks Applied . | . . . . . . . . . . . . . . . . . . . . . . . . . . . . . . . . . . . . . Relay Couplers Released 13 | . . . . . . 1 . 2 . . . . . . . . . . . . . . 3 . . . . . . . 3 . 2 2 . . Machine Destruction 13 | . . . . . . 1 . 2 . . . . . . . . . . . . . . 3 . . . . . . . 3 . 2 2 . . Fabnet Peak Effective % . | . . . . . . . . . . . . . . . . . . . . . . . . . . . . . . . . . . . . . Robots Rewired 23 | . . . . . . . . . . . . . . . . . . . . 13 . . . . . 5 5 . . . . . . . . . Allies Hacked 4 | . . . . . . . . 2 . . . . . . . . . . . . . . . . . . . . . 2 . . . . . . Hacks Repelled . | . . . . . . . . . . . . . . . . . . . . . . . . . . . . . . . . . . . . . Allies | -11 -10 -10 -10 -9 -8 -7 -7 -7 -7 -7 -7 -6 -6 -6 -6 -6 -6 -5 -5 -5 -5 -5 -5 -4 -4 -4 -4 -3 -3 -3 -2 -2 -2 -1 -1 -1 -------- Run | Yrd Mat Min Exi Min Mat Fac Was Fac Low Low Dat Pro Fac Low Low Zio Dee Pro Fac Ext Cet Arc Hub Fac Upp Upp War Pro Res Arm Res Qua Sec Acc Com Ac0 Total Allies 198 | . . 3 . . 2 . 19 . . . . . 1 . . 2 . . 1 18 . . . . . 5 5 . . 4 . . . 86 52 . Largest Group 19 | . . 3 2 1 2 2 19 19 1 . . . 1 . . 2 2 . 1 11 . . . . . 4 8 . . 2 . . . 8 6 . Highest-Rated Group 465 | . . 40 32 16 20 20 465 465 27 . . . 10 . . 192 192 . 10 431 . . . . . 167 417 . . 94 . . . 116 104 . Highest-Rated Ally 159 | . . 16 16 16 10 10 35 35 27 . . . 10 . . 96 96 . 10 159 . . . . . 47 65 . . 47 . . . 15 45 . Total Orders 36 | . . . . . 4 . . . . . . . 3 . . . . . 8 13 . . . . . 2 4 . . . . . . . 2 . STAY 12 | . . . . . 2 . . . . . . . 2 . . . . . 4 . . . . . . 1 2 . . . . . . . 1 . FOLLOW 12 | . . . . . 2 . . . . . . . 1 . . . . . 4 1 . . . . . 1 2 . . . . . . . 1 . EXPLORE 1 | . . . . . . . . . . . . . . . . . . . . 1 . . . . . . . . . . . . . . . . RETURN 11 | . . . . . . . . . . . . . . . . . . . . 11 . . . . . . . . . . . . . . . . Ally Attacks 642 | . . 12 2 . . . . 160 . . . . . . . . 51 . . 253 4 . . . . 16 49 . . 4 . . . 57 34 . Total Damage 15913 | . . 123 18 . . . . 5097 . . . . . . . . 1281 . . 5408 70 . . . . 539 1675 . . 126 . . . 1079 497 . Kills 100 | . . 3 . . . . . 37 . . . . . . . . 9 . . 36 . . . . . 3 6 . . 1 . . . 2 3 . Allies Corrupted 4 | . . . . . . . . 1 . . . . . . . . . . . . . . . . . . 2 . . 1 . . . . . . Allies Melted 1 | . . . . . . . . . . . . . . . . . . . . . . . . . . 1 . . . . . . . . . . Intel | -11 -10 -10 -10 -9 -8 -7 -7 -7 -7 -7 -7 -6 -6 -6 -6 -6 -6 -5 -5 -5 -5 -5 -5 -4 -4 -4 -4 -3 -3 -3 -2 -2 -2 -1 -1 -1 ------- Run | Yrd Mat Min Exi Min Mat Fac Was Fac Low Low Dat Pro Fac Low Low Zio Dee Pro Fac Ext Cet Arc Hub Fac Upp Upp War Pro Res Arm Res Qua Sec Acc Com Ac0 Robot Analysis Total 5 | . 1 . . . . . . . . . . . 1 . . . . . . . . . . . . . . . . . 1 2 . . . . Derelict Logs Recovered 15 | . . 2 . . . . . . 1 3 . 2 . 1 . 1 . 2 . . . . . . 2 1 . . . . . . . . . . Drone Launches 17 | . . . . . . . . . . . . . . . . . . . . 16 1 . . . . . . . . . . . . . . . Drone Recoveries 15 | . . . . . . . . . . . . . . . . . . . . 15 . . . . . . . . . . . . . . . . Exploration | -11 -10 -10 -10 -9 -8 -7 -7 -7 -7 -7 -7 -6 -6 -6 -6 -6 -6 -5 -5 -5 -5 -5 -5 -4 -4 -4 -4 -3 -3 -3 -2 -2 -2 -1 -1 -1 ------------- Run | Yrd Mat Min Exi Min Mat Fac Was Fac Low Low Dat Pro Fac Low Low Zio Dee Pro Fac Ext Cet Arc Hub Fac Upp Upp War Pro Res Arm Res Qua Sec Acc Com Ac0 Turns Passed 62850 | 90 1458 1022 351 194 3267 1426 1065 1286 1483 1730 148 1280 1308 1419 1877 2174 4342 2763 3807 1659 321 7599 1469 2300 1790 1358 1469 999 1020 1188 1135 2136 2077 2253 867 720 Spaces Moved 32758 | 47 623 633 255 100 1353 630 599 646 850 957 91 587 634 801 994 1318 1876 1207 1425 551 105 547 475 882 836 650 806 393 592 685 752 1153 1986 3490 1587 1642 Core 464 | 3 . . . . . . 130 . . . . . . . . . . . . . . 220 . . . . . . . 111 . . . . . . Treads 10738 | 44 130 . . . 1331 630 469 646 850 957 91 587 634 801 994 1318 1197 . . . 1 . 58 . . . . . . . . . . . . . Legs 19823 | . . . . . . . . . . . . . . . . . 679 1207 1425 551 104 327 417 882 836 650 806 393 592 475 752 1153 1865 3488 1579 1642 Wheels 1503 | . 493 633 255 100 22 . . . . . . . . . . . . . . . . . . . . . . . . . . . . . . . Hover . | . . . . . . . . . . . . . . . . . . . . . . . . . . . . . . . . . . . . . Flight 99 | . . . . . . . . . . . . . . . . . . . . . . . . . . . . . . 99 . . . . . . Fastest Speed 30 | 50 140 145 130 140 110 163 50 160 160 160 160 160 160 160 160 160 160 183 140 185 185 185 180 180 183 135 135 172 120 42 110 124 30 30 30 30 Average Speed 149 | 152 161 145 132 140 160 170 139 166 160 164 160 175 160 160 160 160 180 183 187 191 201 1218 212 211 190 184 157 174 120 114 127 134 60 31 30 30 Slowest Speed 2700 | 160 240 145 145 155 240 243 165 245 240 240 160 240 160 160 160 160 270 183 242 242 300 2700 240 242 226 185 185 175 175 330 180 180 182 90 30 30 Overloaded Moves . | . . . . . . . . . . . . . . . . . . . . . . . . . . . . . . . . . . . . . Propulsion Burnouts . | . . . . . . . . . . . . . . . . . . . . . . . . . . . . . . . . . . . . . Robots Hopped 3 | . . . . . . . . . . . . . . . . . . . . . . . . . . . . . . . . . . 3 . . Cave-ins Triggered 2 | . . . . . . 1 . . . . . . . . . . . . . . . . . . . . . . . . . . 1 . . . Teleports 4 | . . . . . . . . . . . . . . . . . . . . . . . . . . . . . . . . . 1 . 1 2 Spacefolds 4 | . . . . . . . . . . . . . . . . . . . . . . . . . . . . . . . . . . 1 3 . Microwarps 8 | . . . . . . . . . . . . . . . . . . . . . . . . . . . . . . . . . 8 . . . Exploration Rate (%) 63 | 3 87 98 62 20 95 21 96 20 90 90 74 80 17 71 94 86 92 98 45 72 48 91 44 18 90 79 91 58 15 23 22 81 78 75 64 77 Regions Visited 36 Branch Regions 25 Pre-discovered Areas 6 | . 1 . 1 . . . . . . 1 1 . . . . 1 . . . . . . . . . 1 . . . . . . . . . . Known Exits Taken 18 | . . . . . . . . . . 1 . 1 1 1 1 . . 1 1 . . . 1 1 1 1 1 1 1 1 1 1 . 1 . . Unknown Exits Taken 16 | 1 1 1 1 1 1 . . 1 1 . 1 . . . . 1 1 . . 1 1 1 . . . . . . . . . . 1 . 1 . Scrap Searched 32 | . . 2 . . . . . . 3 7 . 4 . 2 4 3 . 1 . . . . . . 2 3 . 1 . . . . . . . . Spaces Dug 648 | . . . . . 9 19 . 37 7 6 . 2 4 1 3 2 3 17 26 . . . 9 4 19 3 17 . . 1 15 5 30 323 69 17 Terrain Destroyed 3723 | . . . . 29 9 48 23 86 7 34 . 8 25 5 6 2 13 52 159 145 20 5 79 88 31 14 25 . 29 17 29 196 175 967 637 760 Melee 69 | . . . . . 9 19 . . 7 6 . 1 4 1 3 2 3 . . . . . . . . . 6 . . . . 1 6 1 . . Projectile 2691 | . . . . . . . . . . 1 . 7 10 2 3 . 5 51 76 23 3 5 79 43 12 14 . . . 17 29 57 113 813 568 760 AOE 959 | . . . . 29 . 29 23 86 . 26 . . 11 . . . 5 . 83 122 17 . . 45 19 . 19 . 29 . . 138 56 153 69 . Terrain Rammed . | . . . . . . . . . . . . . . . . . . . . . . . . . . . . . . . . . . . . . Walls Destroyed . | . . . . . . . . . . . . . . . . . . . . . . . . . . . . . . . . . . . . . Machines Disabled . | . . . . . . . . . . . . . . . . . . . . . . . . . . . . . . . . . . . . . Actions | -11 -10 -10 -10 -9 -8 -7 -7 -7 -7 -7 -7 -6 -6 -6 -6 -6 -6 -5 -5 -5 -5 -5 -5 -4 -4 -4 -4 -3 -3 -3 -2 -2 -2 -1 -1 -1 --------- Run | Yrd Mat Min Exi Min Mat Fac Was Fac Low Low Dat Pro Fac Low Low Zio Dee Pro Fac Ext Cet Arc Hub Fac Upp Upp War Pro Res Arm Res Qua Sec Acc Com Ac0 Total 43875 | 58 895 708 266 138 2275 876 768 814 933 1079 94 761 818 879 1227 1377 2715 1634 2303 1023 168 1403 752 1201 993 763 979 701 820 977 872 1547 2728 4546 1954 1830 Wait 6291 | 1 130 44 6 1 687 108 60 58 37 61 . 74 88 10 178 8 565 313 621 257 7 688 133 130 116 9 18 284 152 127 29 85 342 611 199 54 Move 32596 | 46 622 632 254 99 1352 629 598 645 849 956 90 586 633 800 993 1317 1875 1206 1424 550 104 546 474 881 835 649 805 392 591 684 751 1152 1872 3482 1581 1641 Hop 3 | . . . . . . . . . . . . . . . . . . . . . . . . . . . . . . . . . . 3 . . Pick Up 462 | 3 25 6 . 9 34 11 7 28 . 5 . 3 11 4 6 10 34 11 37 8 7 27 6 36 . 1 12 3 7 24 18 16 29 11 9 4 Fast Attach 347 | 6 5 1 . . 20 7 11 11 2 4 2 3 3 6 2 7 34 2 8 9 7 2 6 12 3 3 14 1 2 20 13 26 54 19 8 14 Attach 236 | . 7 . 2 3 9 6 5 4 6 5 . 14 7 2 . 5 22 . 4 5 4 9 5 10 . 2 12 5 8 19 3 17 19 6 8 3 Detach 305 | . 1 . . . 3 . 3 8 5 7 . 13 3 2 . 1 23 3 13 18 6 21 16 27 6 9 20 7 8 8 10 28 18 6 9 3 Swap 371 | . 6 5 . 5 21 26 10 6 2 8 . 25 19 18 17 7 7 19 12 5 2 5 15 9 14 18 3 1 10 7 9 32 3 9 13 3 Drop 560 | . 7 5 2 7 40 13 4 14 . 7 2 5 6 8 8 17 65 13 42 7 8 25 7 33 . 3 36 4 3 21 14 37 53 24 9 11 Fire 2332 | 2 88 15 2 10 93 52 70 36 25 16 . 36 42 28 19 . 72 66 140 72 23 80 87 62 16 25 15 4 38 57 25 141 290 371 117 97 Melee 157 | . . . . 4 13 23 . . 7 8 . 2 6 1 3 5 16 . . . . . . . . . 10 . 1 9 . 13 32 4 . . Ram 1 | . . . . . . . . . . . . . . . . . . . . . . . . . . . . . . 1 . . . . . . Kick 12 | . . . . . . . . . . . . . . . . . . 1 2 . . . 3 1 2 . . . . . . . 3 . . . Crush 12 | . 4 . . . 3 . . 2 . 2 . . . . 1 . . . . . . . . . . . . . . . . . . . . . Escape Stasis 26 | . . . . . . 1 . 2 . . . . . . . . . . . 10 . . . . . . . . . . . . 13 . . . Rewire 162 | . . . . . . . . . . . . . . . . . . . . 82 . . . . 1 44 34 . . . . . . . 1 . Trap 2 | . . . . . . . . . . . . . . . . . 2 . . . . . . . . . . . . . . . . . . . Miscellaneous . | . . . . . . . . . . . . . . . . . . . . . . . . . . . . . . . . . . . . . Route ------- -11/Scrapyard -10/Materials (discovered 4 exits: [*Mat x2] / [*Min x2]) -10/Mines (discovered 3 exits: [*Mat x2] / *Exi) -10/Exiles -9/Mines -8/Materials (discovered 3 exits: *Fac x3) -7/Factory -7/Waste -7/Factory -7/Lower Caves -7/Lower Caves (discovered 2 exits: *Fac / *Dat) -7/Data Miner -6/Proximity Caves -6/Factory (discovered 4 exits: *Fac x2 / *Low x2) -6/Lower Caves -6/Lower Caves (discovered 2 exits: *Fac / *Zio) -6/Zion (discovered 2 exits: [*Dee] / *Pro) -6/Deep Caves -5/Proximity Caves -5/Factory (discovered 5 exits: *Fac / Upp x2 / *Ext x2) -5/Extension (discovered 2 exits: *Fac / [*Cet]) -5/Cetus -5/Archives (discovered 3 exits: *Fac / *Hub x2) -5/Hub_04(d) (discovered 4 exits: *Fac x4) -4/Factory (discovered 3 exits: Res / *Upp x2) -4/Upper Caves -4/Upper Caves -4/Warlord -3/Proximity Caves -3/Research (discovered 6 exits: *Res x3 / *Arm / Tes x2) -3/Armory -2/Research (discovered 2 exits: *Qua x2) -2/Quarantine -2/Section 7 -1/Access (discovered 2 exits: [*Sur] / *Com) -1/Command (discovered 3 exits: [*Sur x2] / *Ac0) -1/Access_0 To Fleet Rendezvous History --------- Turn | Location | Event 19 | -11/Scrapyard | Discovered new exit (range 16) 91 | -11/Scrapyard | Entered Materials 268 | -10/Materials | Discovered new exit (range 16) 307 | -10/Materials | Build established: Mutant 633 | -10/Materials | Discovered new exit (range 5) 651 | -10/Materials | Discovered new exit (range 15) 1145 | -10/Materials | Discovered new exit (range 16) 1197 | -10/Materials | Repaired Heat Sink 1224 | -10/Materials | Repaired Assault Rifle 1549 | -10/Materials | Entered Mines 1612 | -10/Mines | Discovered new exit (range 13) 1634 | -10/Mines | Learned Materials emergency access door positions 1670 | -10/Mines | Learned Materials machine intel 2009 | -10/Mines | Core integrity fell below 50% 2132 | -10/Mines | Assisted by bots powering up and referring to "LRC-V3" 2397 | -10/Mines | Received a Rocket Launcher from a helpful Derelict 2409 | -10/Mines | A weapon hastily lodged in a ceiling crevice suddenly fell to the ground 2504 | -10/Mines | Deemed a non-threat by the Exiles lab entrance 2504 | -10/Mines | Discovered new exit (range 5) 2515 | -10/Mines | Discovered new exit (range 9) 2571 | -10/Mines | Entered Exiles 2571 | -10/Exiles | Accompanied by 2 allies 2605 | -10/Exiles | Met 8R-AWN 2626 | -10/Exiles | Met EX-HEX 2675 | -10/Exiles | Met EX-DEC 2684 | -10/Exiles | Learned location of Zion (-6) 2706 | -10/Exiles | Met EX-BIN 2725 | -10/Exiles | Aligned with FarCom system 2726 | -10/Exiles | Given EX-Vault access code 2756 | -10/Exiles | Opened EX-Vault 2787 | -10/Exiles | Warned to stay clear of 0b10 Research branches 2885 | -10/Exiles | Attacked by the Exiles 2909 | -10/Exiles | Discovered new exit (range 10) 2922 | -10/Exiles | Entered Mines 2922 | -9/Mines | Accompanied by 1 ally 2935 | -9/Mines | Found a damaged Exp. Sensor Array with a note attached 2938 | -9/Mines | Found Prototype Device 2939 | -9/Mines | Identified Exp. Sensor Array 2950 | -9/Mines | Met a Derelict bent on vengeance 2956 | -9/Mines | Discovered new exit (range 10) 3043 | -9/Mines | Met a Derelict shopkeep closing up shop 3116 | -9/Mines | Entered Materials 3116 | -8/Materials | Evolved 4 slots: Propulsion x1, Utility x1, Weapon x2 3118 | -8/Materials | Loaded intel: 55 machine locations 3563 | -8/Materials | Build established: Scavenger-Gunner 3634 | -8/Materials | Discovered new exit (range 13) 3941 | -8/Materials | Build established: Gunner 4184 | -8/Materials | Discovered new exit (range 3) 4250 | -8/Materials | Repaired Lgt. Treads 4311 | -8/Materials | Repaired Enh. Autogun 4332 | -8/Materials | Build established: Hacker-Gunner 4339 | -8/Materials | Repaired Lgt. Treads 4400 | -8/Materials | Repaired Enh. Autogun 4580 | -8/Materials | Destroyed 7 combat bots 4771 | -8/Materials | Discovered new exit (range 7) 4783 | -8/Materials | Central database locked down 4854 | -8/Materials | Repaired Minigun 4893 | -8/Materials | Repaired Minigun 4945 | -8/Materials | Repaired Hvy. Ion Engine 5129 | -8/Materials | Repaired Enh. Autogun 5174 | -8/Materials | Repaired Med. Treads 5236 | -8/Materials | Repaired Enh. Autogun 5275 | -8/Materials | Repaired Arm. Treads 6383 | -8/Materials | Entered Factory 6383 | -7/Factory | Accompanied by 2 allies 6383 | -7/Factory | Evolved 2 slots: Utility x2 6701 | -7/Factory | Repaired Arm. Treads 6892 | -7/Factory | Destroyed 7 combat bots 7388 | -7/Factory | Repaired Enh. Autogun 7542 | -7/Factory | Destroyed 8 combat bots 7583 | -7/Factory | First assault squad dispatched 7596 | -7/Factory | Repaired Arm. Treads 7769 | -7/Factory | Crushed by falling debris 7809 | -7/Factory | Sucked down chute 7809 | -7/Factory | Entered Waste 7816 | -7/Waste | Spotted C-40 Crusher 7824 | -7/Waste | Spotted C-40 Crusher 7833 | -7/Waste | Destroyed C-40 Crusher 7845 | -7/Waste | Destroyed C-40 Crusher 7898 | -7/Waste | Spotted C-40 Crusher 7902 | -7/Waste | Spotted C-40 Crusher 7907 | -7/Waste | Spotted C-40 Crusher 7909 | -7/Waste | Destroyed C-40 Crusher 7942 | -7/Waste | Destroyed C-40 Crusher 7949 | -7/Waste | Crushed by Compactor (1 part destroyed, 2 dropped) 7952 | -7/Waste | Crushed by Compactor (1 part destroyed, 1 dropped) 7955 | -7/Waste | Crushed by Compactor (1 part destroyed, 2 dropped) 7958 | -7/Waste | Crushed by Compactor (1 part destroyed, 1 dropped) 7979 | -7/Waste | Spotted C-40 Crusher 7989 | -7/Waste | Lost 6 parts (1p2n1u2w) 8020 | -7/Waste | Destroyed C-40 Crusher 8086 | -7/Waste | Destroyed C-40 Crusher 8388 | -7/Waste | Build established: Gunner 8452 | -7/Waste | Discovered new exit (range 13) 8467 | -7/Waste | Warlord forces began an assault 8874 | -7/Waste | Entered Factory 8874 | -7/Factory | Accompanied by 19 allies 8991 | -7/Factory | Lost 3 allies 9055 | -7/Factory | Lost 3 allies 9089 | -7/Factory | Repaired Enh. Autogun 9388 | -7/Factory | Fabricated Huge Storage Unit (x1) 9661 | -7/Factory | Discovered new exit (range 8) 9674 | -7/Factory | First assault squad dispatched 9729 | -7/Factory | Garrison activated, responded to threat 9762 | -7/Factory | Lost 7 allies 9997 | -7/Factory | Cargo convoy interrupted 10012 | -7/Factory | P-60 Hacker assimilated allied OB-V1V(m) 10051 | -7/Factory | Destroyed 11 combat bots 10052 | -7/Factory | Lost 3 parts (1p2w) 10160 | -7/Factory | Entered Lower Caves 10160 | -7/Lower Caves | Accompanied by 1 ally 10285 | -7/Lower Caves | Lost 5 allies 11159 | -7/Lower Caves | Learned Factory trap positions 11229 | -7/Lower Caves | Attracted the attention of an 0b10 outpost 11266 | -7/Lower Caves | Core integrity fell below 50% 11357 | -7/Lower Caves | Discovered new exit (range 8) 11643 | -7/Lower Caves | Entered another Lower Caves area 11682 | -7/Lower Caves | Identified exit to Data Miner 11737 | -7/Lower Caves | Attracted the attention of an 0b10 base 11801 | -7/Lower Caves | Learned Armory security intel 11801 | -7/Lower Caves | Learned Extension security intel 11801 | -7/Lower Caves | Learned Research emergency access door positions 11801 | -7/Lower Caves | Learned 8 Research zone layouts 11801 | -7/Lower Caves | Learned location of 1 exit from Proximity Caves 11867 | -7/Lower Caves | Encountered a Warlord checkpoint 12431 | -7/Lower Caves | Spotted B-75 Beast 12612 | -7/Lower Caves | Build established: Skirmisher 12759 | -7/Lower Caves | Discovered new exit (range 6) 13373 | -7/Lower Caves | Entered Data Miner 13374 | -7/Data Miner | Discovered new exit (range 6) 13394 | -7/Data Miner | Met Data Miner 13445 | -7/Data Miner | Learned location of Section 7 (-2) 13445 | -7/Data Miner | Acquired the access code to Warlord's prototype stash 13461 | -7/Data Miner | Received God Mode back door access code from Data Miner 13521 | -7/Data Miner | Entered Proximity Caves 13522 | -6/Proximity Caves | Identified exit to Factory 13526 | -6/Proximity Caves | Learned Factory terminal intel 13666 | -6/Proximity Caves | Build established: Mutant 13702 | -6/Proximity Caves | Spotter reported a threat 13741 | -6/Proximity Caves | Spotter reported a threat 14025 | -6/Proximity Caves | Spotter reported a threat 14029 | -6/Proximity Caves | Attracted the attention of an 0b10 base 14139 | -6/Proximity Caves | Spotter reported a threat 14151 | -6/Proximity Caves | Learned Extension terminal intel 14151 | -6/Proximity Caves | Learned Armory stockpile data 14151 | -6/Proximity Caves | Learned location of 1 exit from Proximity Caves 14212 | -6/Proximity Caves | Spotter reported a threat 14289 | -6/Proximity Caves | Spotter reported a threat 14295 | -6/Proximity Caves | Learned Factory interactive machine intel 14350 | -6/Proximity Caves | Attracted the attention of an 0b10 checkpoint 14442 | -6/Proximity Caves | Spotter reported a threat 14801 | -6/Proximity Caves | Entered Factory 14801 | -6/Factory | Evolved 2 slots: Propulsion x1, Utility x1 14802 | -6/Factory | Identified exit to Lower Caves 14803 | -6/Factory | Loaded intel: 133 trap records 14804 | -6/Factory | Loaded intel: 52 interactive machine locations 14805 | -6/Factory | Loaded intel: 26 terminal locations 14933 | -6/Factory | Discovered new exit (range 5) 15004 | -6/Factory | Identified exit to Factory 15147 | -6/Factory | Repaired Hvy. Missile Launcher 15151 | -6/Factory | Search patrols dispatched 15175 | -6/Factory | Spotted B-75 Beast 15233 | -6/Factory | Discovered exit to Factory (range 13) 15262 | -6/Factory | Build established: Hacker-Gunner 15417 | -6/Factory | Destroyed B-75 Beast 15765 | -6/Factory | Fabricated Exp. Sensor Array (x1) 15830 | -6/Factory | Build established: Gunner 16109 | -6/Factory | Entered Lower Caves 16418 | -6/Lower Caves | Build established: Skirmisher 16418 | -6/Lower Caves | Learned Factory security intel 17056 | -6/Lower Caves | Attracted the attention of an 0b10 checkpoint 17352 | -6/Lower Caves | Discovered new exit (range 8) 17361 | -6/Lower Caves | Identified exit to Lower Caves 17528 | -6/Lower Caves | Entered another Lower Caves area 17547 | -6/Lower Caves | Discovered exit to Factory (range 15) 18311 | -6/Lower Caves | Encountered a Warlord checkpoint 18615 | -6/Lower Caves | Discovered new exit (range 7) 18657 | -6/Lower Caves | Identified exit to Zion 19037 | -6/Lower Caves | Attracted the attention of an 0b10 base 19257 | -6/Lower Caves | Learned Armory terminal intel 19257 | -6/Lower Caves | Learned Extension terminal intel 19257 | -6/Lower Caves | Learned Research terminal intel 19257 | -6/Lower Caves | Learned Armory security intel 19405 | -6/Lower Caves | Entered Zion 19406 | -6/Zion | Identified exit to Proximity Caves 19556 | -6/Zion | Received a visual enhancement algorithm 19603 | -6/Zion | Build established: Assassin 20334 | -6/Zion | Found CR-A16's Pointy Stick 20511 | -6/Zion | Discovered new exit (range 5) 20513 | -6/Zion | Saw the warning signs outside the Deep Caves entrance 20704 | -6/Zion | Given A8's code to call for help 20858 | -6/Zion | Found Prototype Special Weapon 20860 | -6/Zion | Found Prototype Special Weapon 20863 | -6/Zion | Found Prototype Special Weapon 20902 | -6/Zion | Identified RU-N14's Throwing Claymores (x3) 21117 | -6/Zion | Build established: Skirmisher 21152 | -6/Zion | Found Prototype Device 21152 | -6/Zion | Identified Bomb Factory No. 2 21438 | -6/Zion | Build established: Gunner 21569 | -6/Zion | Enhanced Grunt warped into view, answering call for help 21569 | -6/Zion | Enhanced Grunt warped into view, answering call for help 21579 | -6/Zion | Entered Deep Caves 21579 | -6/Deep Caves | Accompanied by 2 allies 21796 | -6/Deep Caves | Attacked by Z-Imprinter 21806 | -6/Deep Caves | Allies destroyed Z-Imprinter 21843 | -6/Deep Caves | Found Prototype Protection 21843 | -6/Deep Caves | Identified Zio. Weapon Casing 21950 | -6/Deep Caves | Z-Facility disabled 22016 | -6/Deep Caves | Found Prototype Protection 22016 | -6/Deep Caves | Identified Zio. Heavy Carapace 22510 | -6/Deep Caves | Build established: Scavenger-Skirmisher 22709 | -6/Deep Caves | Found Prototype Device 22709 | -6/Deep Caves | Identified Exp. Thermal Shield 22867 | -6/Deep Caves | Discovered new exit (range 6) 23070 | -6/Deep Caves | Build established: Mutant 23164 | -6/Deep Caves | Found Zio. Weapon Casing 23182 | -6/Deep Caves | Found Zio. Heavy Carapace 23272 | -6/Deep Caves | Found Zio. Weapon Casing 23420 | -6/Deep Caves | Spotted as-67109 23603 | -6/Deep Caves | Destroyed as-67109 23660 | -6/Deep Caves | Spotted as-30042 23732 | -6/Deep Caves | Destroyed as-30042 23740 | -6/Deep Caves | Found GOLEM Unit 23762 | -6/Deep Caves | Lost 5 parts (1n4u) 24468 | -6/Deep Caves | Exposed GOLEM chamber 24469 | -6/Deep Caves | Triggered Deep Caves wall 24469 | -6/Deep Caves | Spotted AS-79784 24469 | -6/Deep Caves | Spotted AS-83106 24477 | -6/Deep Caves | Destroyed AS-83106 24482 | -6/Deep Caves | Destroyed AS-79784 24526 | -6/Deep Caves | Destroyed 37 combat bots 24535 | -6/Deep Caves | Build established: Golem 24675 | -6/Deep Caves | Found GOLEM Unit 24682 | -6/Deep Caves | Found GOLEM Unit 24705 | -6/Deep Caves | Found GOLEM Unit 24776 | -6/Deep Caves | Found AWS/Gauss 25059 | -6/Deep Caves | Found Zio. Weapon Casing 25069 | -6/Deep Caves | Found Zio. Weapon Casing 25921 | -6/Deep Caves | Entered Proximity Caves 26122 | -5/Proximity Caves | Spotted B-75 Beast 26127 | -5/Proximity Caves | Learned Factory interactive machine intel 26285 | -5/Proximity Caves | Destroyed B-75 Beast 27143 | -5/Proximity Caves | Attracted the attention of an 0b10 checkpoint 27542 | -5/Proximity Caves | Learned Factory security intel 27764 | -5/Proximity Caves | Attracted the attention of an 0b10 base 27820 | -5/Proximity Caves | Learned Extension terminal intel 27820 | -5/Proximity Caves | Learned Extension security intel 27820 | -5/Proximity Caves | Learned Extension stockpile data 27820 | -5/Proximity Caves | Learned Research stockpile data 27820 | -5/Proximity Caves | Learned Armory trap positions 27820 | -5/Proximity Caves | Learned Research trap positions 28684 | -5/Proximity Caves | Entered Factory 28684 | -5/Factory | Evolved 2 slots: Power x1, Utility x1 28685 | -5/Factory | Identified exit to Upper Caves 28687 | -5/Factory | Loaded intel: 53 interactive machine locations 30437 | -5/Factory | Discovered new exit (range 10) 30625 | -5/Factory | Identified exit to Extension 30904 | -5/Factory | Repaired Enh. Force Rifle 31084 | -5/Factory | First assault squad dispatched 31205 | -5/Factory | Fabricated Combat Drone Bay (x1) 31323 | -5/Factory | Destroyed 9 combat bots 31428 | -5/Factory | Spotted B-75 Beast 31674 | -5/Factory | Garrison activated, responded to threat 31886 | -5/Factory | Lost 5 parts (1n1u3w) 32042 | -5/Factory | Garrison activated, responded to threat 32100 | -5/Factory | Destroyed 15 combat bots 32491 | -5/Factory | Entered Extension 32493 | -5/Extension | Loaded intel: 15 terminal locations 32576 | -5/Extension | Rescued a captive Derelict 32717 | -5/Extension | Rescued a captive Derelict 32791 | -5/Extension | First assault squad dispatched 32898 | -5/Extension | Rescued a captive Derelict 33148 | -5/Extension | Rescued A7 33592 | -5/Extension | Build established: Commander-Golem 33781 | -5/Extension | Spotted B-75 Beast 33804 | -5/Extension | Destroyed B-75 Beast 33830 | -5/Extension | Destroyed 13 combat bots 33840 | -5/Extension | Lost 10 allies 33858 | -5/Extension | Spotted B-75 Beast 33863 | -5/Extension | Destroyed B-75 Beast 33893 | -5/Extension | High security lockdown imminent 33973 | -5/Extension | High security lockdown engaged 34050 | -5/Extension | Destroyed 10 combat bots 34059 | -5/Extension | Discovered new exit (range 23) 34060 | -5/Extension | Discovered new exit (range 23) 34091 | -5/Extension | Disrupted transfer network 34094 | -5/Extension | Extracted ID and sensor layout for unrecognized location from A7's data core 34102 | -5/Extension | Disrupted transfer network 34118 | -5/Extension | Build established: Golem 34135 | -5/Extension | Destroyed 35 combat bots 34150 | -5/Extension | Entered Cetus 34189 | -5/Cetus | Spotted Cetus Guard 34195 | -5/Cetus | Destroyed Cetus Guard 34202 | -5/Cetus | Spotted Cetus Guard 34203 | -5/Cetus | Destroyed Cetus Guard 34221 | -5/Cetus | Destroyed Cetus Guard 34226 | -5/Cetus | Spotted Cetus Guard 34233 | -5/Cetus | Destroyed Cetus Guard 34391 | -5/Cetus | High security lockdown imminent 34441 | -5/Cetus | Discovered new exit (range 15) 34471 | -5/Cetus | High security lockdown engaged 34471 | -5/Cetus | Entered Archives 35012 | -5/Archives | Discovered new exit (range 16) 35127 | -5/Archives | Build established: Scavenger-Golem 35145 | -5/Archives | Discovered new exit (range 14) 35473 | -5/Archives | Discovered new exit (range 16) 42070 | -5/Archives | Entered Hub_04(d) 42336 | -5/Hub_04(d) | Garrison activated, responded to threat 42453 | -5/Hub_04(d) | Identified exit to Factory 42728 | -5/Hub_04(d) | Core integrity fell below 50% 43270 | -5/Hub_04(d) | First assault squad dispatched 43427 | -5/Hub_04(d) | Spotted B-75 Beast 43432 | -5/Hub_04(d) | Network Hub disabled 43432 | -5/Hub_04(d) | Network Hub disabled 43492 | -5/Hub_04(d) | Network Hub disabled 43500 | -5/Hub_04(d) | Spotted Lightning 43501 | -5/Hub_04(d) | Spotted Lightning 43508 | -5/Hub_04(d) | Spotted Lightning 43537 | -5/Hub_04(d) | Core integrity fell below 20% 43537 | -5/Hub_04(d) | System corruption reached 10% 43539 | -5/Hub_04(d) | Entered Factory 43539 | -4/Factory | Evolved 2 slots: Utility x2 43540 | -4/Factory | Identified exit to Research 43569 | -4/Factory | Lost 3 parts (1p1n1w) 43677 | -4/Factory | Found Prototype Launcher 43677 | -4/Factory | Identified Com. Tesla Bomb Launcher 43682 | -4/Factory | Found Faulty Com. Tesla Bomb Launcher 43880 | -4/Factory | Build established: Hacker-Golem 44134 | -4/Factory | Identified exit to Upper Caves 44617 | -4/Factory | Garrison activated, responded to threat 44665 | -4/Factory | Found Prototype Processor 44665 | -4/Factory | Identified Exp. Melee Analysis Suite 44677 | -4/Factory | Found Exp. Melee Analysis Suite 44890 | -4/Factory | Repaired Centrium Medium Armor Plating 45200 | -4/Factory | Build established: Scavenger-Golem 45235 | -4/Factory | Found Gamma Bomb Array 45238 | -4/Factory | Found Gamma Bomb Array 45286 | -4/Factory | Fabricated Weapon Mount? 45335 | -4/Factory | Destroyed 9 combat bots 45338 | -4/Factory | First assault squad dispatched 45779 | -4/Factory | Fabricated Weapon Mount (x2) 45817 | -4/Factory | Build established: Golem 45839 | -4/Factory | Entered Upper Caves 45960 | -4/Upper Caves | Learned 4 Research zone layouts 46082 | -4/Upper Caves | Attracted the attention of an 0b10 checkpoint 46147 | -4/Upper Caves | Build established: Scavenger-Golem 46364 | -4/Upper Caves | Learned Research interactive machine intel 47012 | -4/Upper Caves | Discovered new exit (range 11) 47032 | -4/Upper Caves | Identified exit to Upper Caves 47179 | -4/Upper Caves | Encountered a Warlord checkpoint 47629 | -4/Upper Caves | Entered another Upper Caves area 47630 | -4/Upper Caves | Encountered a Warlord checkpoint 47761 | -4/Upper Caves | Learned location of Quarantine (-2) 48069 | -4/Upper Caves | Attracted the attention of an 0b10 outpost 48417 | -4/Upper Caves | Found Alien Artifact 48417 | -4/Upper Caves | Identified Core Expander 48417 | -4/Upper Caves | Installed Core Expander, added new Weapon slot 48958 | -4/Upper Caves | Discovered new exit (range 6) 48967 | -4/Upper Caves | Identified exit to Warlord 48987 | -4/Upper Caves | Entered Warlord 48987 | -4/Warlord | Accompanied by 3 allies 48988 | -4/Warlord | Identified exit to Proximity Caves 49056 | -4/Warlord | System corruption cleaned by Quarantine Array 49262 | -4/Warlord | Build established: Scavenger-Mutant 49348 | -4/Warlord | Found Prototype Energy Gun 49348 | -4/Warlord | Identified Plasma Storm 49793 | -4/Warlord | Warlord's base attacked by MAIN.C 49807 | -4/Warlord | Found Prototype Energy Gun 49807 | -4/Warlord | Identified Vortex Rifle 49812 | -4/Warlord | Found Vortex Rifle 49909 | -4/Warlord | Met Warlord 49931 | -4/Warlord | Opened Warlord's prototype stash 49958 | -4/Warlord | Found Prototype Reactor 49958 | -4/Warlord | Identified Vortex Chain Reactor 49967 | -4/Warlord | Found Prototype Device 49967 | -4/Warlord | Identified Exp. Cloaking Device 49982 | -4/Warlord | Found Prototype Device 49982 | -4/Warlord | Identified Thermal Barrier 49998 | -4/Warlord | Found Prototype Processor 50125 | -4/Warlord | Spotted Striker 50129 | -4/Warlord | Allies destroyed Striker 50143 | -4/Warlord | Warlord forces counterattacked 50170 | -4/Warlord | Spotted Striker 50212 | -4/Warlord | Lost 6 allies 50218 | -4/Warlord | Spotted Striker 50220 | -4/Warlord | Spotted Executioner 50220 | -4/Warlord | Spotted Striker 50267 | -4/Warlord | Lost 6 allies 50300 | -4/Warlord | Destroyed CY-S58(g) 50300 | -4/Warlord | Destroyed Executioner 50322 | -4/Warlord | Found Prototype Processor 50322 | -4/Warlord | Identified Exp. Core Analyzer 50333 | -4/Warlord | Lost 8 allies 50356 | -4/Warlord | Found Prototype Processor 50356 | -4/Warlord | Identified Exp. Targeting Computer 50365 | -4/Warlord | Found Prototype Device 50365 | -4/Warlord | Identified Adv. Kinecellerator 50398 | -4/Warlord | Spotted Executioner 50413 | -4/Warlord | Spotted Executioner 50415 | -4/Warlord | Destroyed Executioner 50427 | -4/Warlord | Destroyed Executioner 50448 | -4/Warlord | Destroyed 10 combat bots 50456 | -4/Warlord | Entered Proximity Caves 50457 | -3/Proximity Caves | Derelict sapper outpost attacked 50464 | -3/Proximity Caves | Lost 8 allies 50560 | -3/Proximity Caves | Encountered a Derelict sapper outpost 50811 | -3/Proximity Caves | Build established: Skirmisher 51160 | -3/Proximity Caves | Discovered exit to Research (range 4) 51455 | -3/Proximity Caves | Entered Research 51455 | -3/Research | Evolved 2 slots: Propulsion x1, Utility x1 51456 | -3/Research | Identified exit to Testing 51457 | -3/Research | Loaded intel: 72 trap records 51460 | -3/Research | Loaded intel: 46 interactive machine locations 51461 | -3/Research | Loaded intel: 24 terminal locations 51737 | -3/Research | Identified exit to Research 51819 | -3/Research | Identified exit to Armory 52013 | -3/Research | Build established: Hacker-Skirmisher 52162 | -3/Research | Found Prototype Processor 52162 | -3/Research | Identified Exp. Signal Interpreter 52455 | -3/Research | First assault squad dispatched 52475 | -3/Research | Entered Armory 52476 | -3/Armory | Loaded intel: 37 trap records 52479 | -3/Armory | Loaded intel: 12 terminal locations 52856 | -3/Armory | Lost 3 parts (3u) 53083 | -3/Armory | System corruption reached 10% 53150 | -3/Armory | Lost 5 parts (1p2u2w) 53221 | -3/Armory | Lost 8 parts (2p2n3u1w) 53245 | -3/Armory | Identified Exp. Armor Integrity Analyzer 53275 | -3/Armory | Lost 7 parts (3n2u2w) 53326 | -3/Armory | Fabricated G-67 Veteran (x3) 53640 | -3/Armory | Build established: Scavenger-Mutant 53661 | -3/Armory | Discovered exit to Research (range 4) 53663 | -3/Armory | Entered Research 53663 | -2/Research | Warlord forces began assault on 0b10 53663 | -2/Research | Evolved 2 slots: Power x1, Utility x1 53734 | -2/Research | Identified exit to Quarantine 53773 | -2/Research | Research machine network offline 53822 | -2/Research | Spotted B-90 Cyclops 53866 | -2/Research | Met up with Warlord 54160 | -2/Research | Borebot progress halted 54206 | -2/Research | Spotted Striker 54223 | -2/Research | Build established: Scavenger-Golem 54355 | -2/Research | Borebot progress halted 54371 | -2/Research | Borebot progress halted 54506 | -2/Research | Spotted Executioner 54522 | -2/Research | Destroyed Executioner 54540 | -2/Research | Found Adv. Kinecellerator 54544 | -2/Research | Found Exp. Core Analyzer 54723 | -2/Research | Spotted Executioner 54723 | -2/Research | Spotted Executioner 54724 | -2/Research | Destroyed Executioner 54750 | -2/Research | Warlord invited to help at Command 54753 | -2/Research | Lost 5 allies 54757 | -2/Research | Found Exp. Core Analyzer 54795 | -2/Research | Lost 4 allies 54798 | -2/Research | Entered Quarantine 54863 | -2/Quarantine | Found Alien Artifact 54863 | -2/Quarantine | Identified Phase Redirector 54903 | -2/Quarantine | Lost 6 allies 54919 | -2/Quarantine | Found Prototype Launcher 54919 | -2/Quarantine | Identified Point Singularity Launcher 54943 | -2/Quarantine | Repaired Adv. Cooling System? 54988 | -2/Quarantine | Garrison activated, responded to threat 55298 | -2/Quarantine | First assault squad dispatched 55499 | -2/Quarantine | Found Alien Slashing Weapon 55499 | -2/Quarantine | Identified Sigix Broadsword 55543 | -2/Quarantine | Found Alien Impact Weapon 55715 | -2/Quarantine | Found Alien Artifact 55758 | -2/Quarantine | Build established: Scavenger-Skirmisher 56149 | -2/Quarantine | System corruption reached 10% 56285 | -2/Quarantine | Found Quantum Capacitor 56377 | -2/Quarantine | Destroyed 8 combat bots 56480 | -2/Quarantine | Found Alien Artifact 56480 | -2/Quarantine | Identified Core Reset Matrix 56480 | -2/Quarantine | Identified Core Stripper 56480 | -2/Quarantine | Identified Subatomic Replicator 56480 | -2/Quarantine | Used Core Reset Matrix 56484 | -2/Quarantine | Detected hypermatrix surge 56484 | -2/Quarantine | Sensed 5 artifacts in vicinity 56632 | -2/Quarantine | Destroyed 10 combat bots 56661 | -2/Quarantine | Spotted Fortress 56738 | -2/Quarantine | Build established: Scavenger-Gunner 56906 | -2/Quarantine | Discovered new exit (range 5) 56910 | -2/Quarantine | Identified exit to Section 7 56934 | -2/Quarantine | Entered Section 7 56935 | -2/Section 7 | Sensed 20 artifacts in vicinity 57210 | -2/Section 7 | First assault squad dispatched 57410 | -2/Section 7 | Discovered new exit (range 15) 57592 | -2/Section 7 | Found Microwarp Drive 57617 | -2/Section 7 | Spotted Alpha 7 57619 | -2/Section 7 | Spotted Alpha 7 57621 | -2/Section 7 | Spotted B-99 Colossus 57646 | -2/Section 7 | Used Subatomic Replicator to create Supercharged Integrated Dissipator 57649 | -2/Section 7 | Installed Supercharged Integrated Dissipator, increased core heat dissipation (+40) 57653 | -2/Section 7 | Found Integrated Dissipator 57653 | -2/Section 7 | Installed Integrated Dissipator, increased core heat dissipation (+20) 57656 | -2/Section 7 | Found Integrated Dissipator 57656 | -2/Section 7 | Installed Integrated Dissipator, increased core heat dissipation (+20) 57701 | -2/Section 7 | Found LRC Armor 57701 | -2/Section 7 | Installed LRC Armor, increased core integrity (+250) 57710 | -2/Section 7 | Found LRC Energy Well 57710 | -2/Section 7 | Installed LRC Energy Well, increased energy storage capacity (+250) 57723 | -2/Section 7 | Destroyed Alpha 7 57744 | -2/Section 7 | Destroyed Alpha 7 57752 | -2/Section 7 | Found Prototype Processor 57752 | -2/Section 7 | Identified Exp. Targeting Computer 57778 | -2/Section 7 | Found Prototype Processor 57782 | -2/Section 7 | Found Prototype Device 57782 | -2/Section 7 | Identified Exp. ECM Suite 57849 | -2/Section 7 | Destroyed 8 combat bots 57976 | -2/Section 7 | Crushed by falling debris 58006 | -2/Section 7 | Build established: Alien-Gunner 58007 | -2/Section 7 | Lost 3 parts (3u) 58010 | -2/Section 7 | Integrated with Sigix Exoskeleton 58041 | -2/Section 7 | Scanned by Researcher 58048 | -2/Section 7 | High security lockdown imminent 58079 | -2/Section 7 | Intercept squad dispatched 58092 | -2/Section 7 | Spotted Striker 58092 | -2/Section 7 | Spotted Striker 58097 | -2/Section 7 | Found Sigix Shearcannon 58100 | -2/Section 7 | Destroyed Striker 58101 | -2/Section 7 | Destroyed Striker 58104 | -2/Section 7 | Spotted Tracker 58105 | -2/Section 7 | Spotted Tracker 58109 | -2/Section 7 | Destroyed Tracker 58109 | -2/Section 7 | Spotted Striker 58110 | -2/Section 7 | Spotted Striker 58112 | -2/Section 7 | Destroyed Tracker 58115 | -2/Section 7 | Destroyed Striker 58115 | -2/Section 7 | Destroyed Striker 58128 | -2/Section 7 | High security lockdown engaged 58136 | -2/Section 7 | Found Prototype Device 58136 | -2/Section 7 | Identified Exp. Phase Shifter 58141 | -2/Section 7 | Destroyed 12 combat bots 58155 | -2/Section 7 | Spotted Combat Programmer 58156 | -2/Section 7 | Spotted Combat Programmer 58156 | -2/Section 7 | Destroyed Combat Programmer 58157 | -2/Section 7 | Destroyed Combat Programmer 58196 | -2/Section 7 | Found Transdimensional Reconstructor 58198 | -2/Section 7 | Found Transdimensional Reconstructor 58205 | -2/Section 7 | Found Terrabomb 58300 | -2/Section 7 | Spotted Executioner 58301 | -2/Section 7 | Spotted Executioner 58310 | -2/Section 7 | Build established: Alien-Sigix 58319 | -2/Section 7 | Destroyed Executioner 58320 | -2/Section 7 | Destroyed Executioner 58341 | -2/Section 7 | Destroyed 18 combat bots 58376 | -2/Section 7 | Spotted Investigator 58376 | -2/Section 7 | Destroyed Investigator 58396 | -2/Section 7 | Core integrity fell below 50% 58434 | -2/Section 7 | Spotted Executioner 58438 | -2/Section 7 | Destroyed Executioner 58459 | -2/Section 7 | Destroyed 22 combat bots 58598 | -2/Section 7 | Destroyed 28 combat bots 58603 | -2/Section 7 | Intercept squad dispatched 58622 | -2/Section 7 | Spotted Tracker 58625 | -2/Section 7 | Spotted Tracker 58626 | -2/Section 7 | Spotted Tracker 58627 | -2/Section 7 | Destroyed Tracker 58628 | -2/Section 7 | Destroyed Tracker 58629 | -2/Section 7 | Destroyed Tracker 58664 | -2/Section 7 | Spotted Combat Programmer 58679 | -2/Section 7 | Destroyed Executioner 58683 | -2/Section 7 | Sigix Exoskeleton integrity reduced to 80% 58683 | -2/Section 7 | Spotted Combat Programmer 58684 | -2/Section 7 | Spotted Combat Programmer 58685 | -2/Section 7 | Spotted Investigator 58686 | -2/Section 7 | Destroyed Investigator 58690 | -2/Section 7 | Warped through subspace 58699 | -2/Section 7 | Destroyed Striker 58721 | -2/Section 7 | Destroyed 15 combat bots 58728 | -2/Section 7 | Sterilization system engaged 58728 | -2/Section 7 | Non-combat units ordered to evacuate 58734 | -2/Section 7 | Destroyed B-99 Colossus 58780 | -2/Section 7 | Destroyed 14 combat bots 58793 | -2/Section 7 | Destroyed Combat Programmer 58799 | -2/Section 7 | Found Transdimensional Reconstructor 58804 | -2/Section 7 | Spotted Executioner 58804 | -2/Section 7 | Spotted Executioner 58810 | -2/Section 7 | Destroyed Executioner 58811 | -2/Section 7 | Destroyed Executioner 58819 | -2/Section 7 | Found Prototype Device 58819 | -2/Section 7 | Identified Adv. Kinecellerator 58828 | -2/Section 7 | Combat units ordered to evacuate 58880 | -2/Section 7 | Found Quantum Capacitor 58892 | -2/Section 7 | Found Spacefold Activator 59009 | -2/Section 7 | Spotted S7 Guard 59011 | -2/Section 7 | Entered Access 59011 | -1/Access | Evolved 2 slots: Utility x2 59016 | -1/Access | Emitted hypermatrix ping 59021 | -1/Access | Assembled emerged from beneath the floor 59043 | -1/Access | Identified Exp. Target Analyzer 59074 | -1/Access | Spotted B-99 Colossus 59114 | -1/Access | Identified exit to Command 59134 | -1/Access | High security lockdown imminent 59169 | -1/Access | Assembled emerged from beneath the floor 59180 | -1/Access | Destroyed 12 combat bots 59208 | -1/Access | Assembled emerged from beneath the floor 59214 | -1/Access | High security lockdown engaged 59226 | -1/Access | Assembled emerged from beneath the floor 59315 | -1/Access | Spotted Executioner 59316 | -1/Access | Spotted Executioner 59322 | -1/Access | Destroyed Executioner 59325 | -1/Access | Destroyed Executioner 59329 | -1/Access | Found Exp. Core Analyzer 59344 | -1/Access | Intercept squad dispatched 59352 | -1/Access | Destroyed 19 combat bots 59362 | -1/Access | Destroyed Tracker 59362 | -1/Access | Spotted Tracker 59365 | -1/Access | Destroyed Tracker 59392 | -1/Access | Spotted Combat Programmer 59395 | -1/Access | Destroyed Combat Programmer 59408 | -1/Access | Destroyed Investigator 59435 | -1/Access | Destroyed 20 combat bots 59581 | -1/Access | Destroyed Executioner 59582 | -1/Access | Destroyed Striker 59589 | -1/Access | Spotted Striker 59589 | -1/Access | Destroyed Striker 59604 | -1/Access | Spotted Executioner 59605 | -1/Access | Destroyed Executioner 59665 | -1/Access | Destroyed 17 combat bots 59690 | -1/Access | Spotted Executioner 59691 | -1/Access | Destroyed Executioner 59692 | -1/Access | Destroyed Executioner 59694 | -1/Access | Destroyed Executioner 59719 | -1/Access | Destroyed 9 combat bots 59756 | -1/Access | Destroyed Striker 59765 | -1/Access | Spotted Striker 59767 | -1/Access | Destroyed Striker 59773 | -1/Access | Spotted Executioner 59774 | -1/Access | Destroyed Executioner 59782 | -1/Access | Destroyed Striker 59789 | -1/Access | Destroyed Executioner 59795 | -1/Access | Destroyed Executioner 59796 | -1/Access | Destroyed Executioner 59797 | -1/Access | Destroyed Executioner 59823 | -1/Access | Destroyed 20 combat bots 59837 | -1/Access | Destroyed Investigator 59861 | -1/Access | Discovered new exit (range 18) 59914 | -1/Access | Found Prototype Device 59914 | -1/Access | Identified Exp. Force Field 60024 | -1/Access | Spotted Striker 60024 | -1/Access | Destroyed Striker 60027 | -1/Access | Spotted Striker 60027 | -1/Access | Spotted Executioner 60027 | -1/Access | Destroyed Striker 60030 | -1/Access | Spotted Executioner 60031 | -1/Access | Destroyed Executioner 60034 | -1/Access | Destroyed Executioner 60037 | -1/Access | Spotted Executioner 60039 | -1/Access | Sterilization system engaged 60052 | -1/Access | Destroyed Executioner 60053 | -1/Access | Destroyed Executioner 60055 | -1/Access | Destroyed Striker 60058 | -1/Access | Spotted Striker 60069 | -1/Access | Destroyed Executioner 60070 | -1/Access | Destroyed Striker 60073 | -1/Access | Spotted B-99 Colossus 60073 | -1/Access | Spotted B-99 Colossus 60091 | -1/Access | Destroyed 20 combat bots 60135 | -1/Access | Destroyed Striker 60138 | -1/Access | Spotted Executioner 60145 | -1/Access | Destroyed Executioner 60148 | -1/Access | Found Exp. Core Analyzer 60151 | -1/Access | Found Exp. Core Analyzer 60176 | -1/Access | Assembled emerged from beneath the floor 60187 | -1/Access | Destroyed 11 combat bots 60195 | -1/Access | Spotted B-99 Colossus 60260 | -1/Access | Destroyed B-99 Colossus 60310 | -1/Access | Destroyed B-99 Colossus 60339 | -1/Access | Ambient heat levels rising (+10) 60343 | -1/Access | Destroyed B-99 Colossus 60349 | -1/Access | Destroyed B-99 Colossus 60489 | -1/Access | Ambient heat levels rising (+10) 60540 | -1/Access | Assembled emerged from beneath the floor 60566 | -1/Access | Assembled emerged from beneath the floor 60599 | -1/Access | Destroyed B-99 Colossus 60639 | -1/Access | Ambient heat levels rising (+10) 60762 | -1/Access | Destroyed 8 combat bots 60781 | -1/Access | Spotted B-99 Colossus 60787 | -1/Access | Assembled emerged from beneath the floor 60789 | -1/Access | Ambient heat levels rising (+10) 60792 | -1/Access | Destroyed B-99 Colossus 60875 | -1/Access | Assembled emerged from beneath the floor 60896 | -1/Access | Assembled emerged from beneath the floor 60916 | -1/Access | Destroyed 9 combat bots 60939 | -1/Access | Ambient heat levels rising (+10) 60947 | -1/Access | Assembled emerged from beneath the floor 60974 | -1/Access | Energy Cycler disabled 60996 | -1/Access | Assembled emerged from beneath the floor 61089 | -1/Access | Ambient heat levels rising (+10) 61239 | -1/Access | Ambient heat levels rising (+10) 61264 | -1/Access | Entered Command 61269 | -1/Command | Emitted hypermatrix ping 61274 | -1/Command | Assembled emerged from beneath the floor 61298 | -1/Command | Assembled emerged from beneath the floor 61437 | -1/Command | Assembled emerged from beneath the floor 61497 | -1/Command | High security lockdown imminent 61528 | -1/Command | Disengaged cave seal 61534 | -1/Command | Spotted M Guard 61534 | -1/Command | Spotted M Guard 61536 | -1/Command | Spotted Combat Programmer 61545 | -1/Command | Spotted Combat Programmer 61546 | -1/Command | Destroyed Combat Programmer 61547 | -1/Command | Destroyed Combat Programmer 61553 | -1/Command | Welcomed Warlord to Command 61554 | -1/Command | Attacked by Warlord 61554 | -1/Command | Spotted A1-DZZ(L) 61564 | -1/Command | Destroyed M Guard 61565 | -1/Command | Destroyed M Guard 61565 | -1/Command | All MAIN.C guards destroyed 61566 | -1/Command | Destroyed A1-DZZ(L) 61570 | -1/Command | Found Prototype Reactor 61577 | -1/Command | High security lockdown engaged 61589 | -1/Command | Lost 3 allies 61592 | -1/Command | Warlord destroyed during the assault 61592 | -1/Command | Destroyed Warlord 61594 | -1/Command | Found Prototype Device 61594 | -1/Command | Identified AEGIS Remote Shield 61613 | -1/Command | Destroyed 9 combat bots 61618 | -1/Command | Met MAIN.C 61621 | -1/Command | 0b10 Conduit disabled 61635 | -1/Command | MAIN.C's shell transforms into a squad of autonomous robots 61635 | -1/Command | Destroyed MAIN.C Shell 61635 | -1/Command | Spotted M Shell/Def 61635 | -1/Command | Spotted M Shell/Atk 61635 | -1/Command | Spotted M Shell/Def 61635 | -1/Command | Spotted M Shell/Atk 61635 | -1/Command | Spotted M Shell/Atk 61635 | -1/Command | Spotted M Shell/Def 61635 | -1/Command | Spotted M Shell/Atk 61635 | -1/Command | Spotted M Shell/Def 61636 | -1/Command | MAIN.C activated Command garrisons 61638 | -1/Command | Used Terrabomb 61646 | -1/Command | Discovered new exit (range 18) 61680 | -1/Command | Destroyed MAIN.C 61688 | -1/Command | Found Prototype Processor 61688 | -1/Command | Identified Exp. Targeting Computer 61690 | -1/Command | Discovered new exit (range 65) 61690 | -1/Command | Discovered new exit (range 172) 61690 | -1/Command | Extracted map data and part IDs from MAIN.C's data core 61728 | -1/Command | Destroyed M Shell/Def 61729 | -1/Command | Destroyed M Shell/Atk 61748 | -1/Command | Destroyed M Shell/Def 61754 | -1/Command | Spotted B-99 Colossus 61756 | -1/Command | Destroyed B-99 Colossus 61776 | -1/Command | Found Exp. System Purifier 61777 | -1/Command | Destroyed 21 combat bots 61778 | -1/Command | Found Zero-point Reactor 61848 | -1/Command | Core integrity fell below 50% 61900 | -1/Command | Discovered new exit (range 30) 61900 | -1/Command | Discovered new exit (range 94) 61900 | -1/Command | Extracted map data and part IDs from MAIN.C's data core 61961 | -1/Command | Assembled emerged from beneath the floor 61973 | -1/Command | Spotted Alpha 7 61979 | -1/Command | Destroyed Alpha 7 61998 | -1/Command | Assembled emerged from beneath the floor 61998 | -1/Command | Spotted Executioner 61999 | -1/Command | Destroyed Executioner 62006 | -1/Command | Spotted Executioner 62008 | -1/Command | Destroyed Executioner 62019 | -1/Command | Spotted B-99 Colossus 62027 | -1/Command | Destroyed B-99 Colossus 62036 | -1/Command | Lost 7 allies 62048 | -1/Command | Phase Generator disabled 62065 | -1/Command | Destroyed 36 combat bots 62067 | -1/Command | Assembled emerged from beneath the floor 62093 | -1/Command | Assembled emerged from beneath the floor 62125 | -1/Command | Warped through subspace to slip node 62125 | -1/Command | Discovered new exit (range 4) 62131 | -1/Command | Entered Access_0 62132 | -1/Access_0 | Sensed 4 artifacts in vicinity 62132 | -1/Access_0 | Met Architect 62136 | -1/Access_0 | Architect warped through subspace 62136 | -1/Access_0 | Destroyed A8 62159 | -1/Access_0 | Found Exp. Weapon Cycler 62163 | -1/Access_0 | Architect warped through subspace 62188 | -1/Access_0 | Architect warped through subspace 62203 | -1/Access_0 | A6 warped into view 62210 | -1/Access_0 | Architect warped through subspace 62222 | -1/Access_0 | Architect warped through subspace 62224 | -1/Access_0 | Destroyed A6 62261 | -1/Access_0 | Architect warped through subspace 62265 | -1/Access_0 | Found Integrated Reactor 62265 | -1/Access_0 | Installed Integrated Reactor, increased core energy generation (+10) 62274 | -1/Access_0 | A5 warped into view 62280 | -1/Access_0 | Destroyed A5 62292 | -1/Access_0 | Architect warped through subspace 62300 | -1/Access_0 | Subspace Access Node disabled 62324 | -1/Access_0 | Architect warped through subspace 62346 | -1/Access_0 | Architect warped through subspace 62352 | -1/Access_0 | Subspace Access Node disabled 62372 | -1/Access_0 | Subspace Access Node disabled 62379 | -1/Access_0 | A4 warped into view 62383 | -1/Access_0 | Subspace Access Node disabled 62425 | -1/Access_0 | Destroyed A4 62426 | -1/Access_0 | Sigix Exoskeleton integrity reduced to 60% 62433 | -1/Access_0 | Core integrity fell below 20% 62440 | -1/Access_0 | Destroyed A2 62442 | -1/Access_0 | Extracted Singularity Gate Test 138-C access codes from A2's data core 62457 | -1/Access_0 | Found Core Regenerator 62457 | -1/Access_0 | Used Core Regenerator, restored core integrity (+462) 62512 | -1/Access_0 | Started Test 138-B, establishing a local singularity 62512 | -1/Access_0 | Started Test 138-B, establishing a local singularity 62512 | -1/Access_0 | Started Test 138-B, establishing a local singularity 62513 | -1/Access_0 | Singularity Gate disabled 62524 | -1/Access_0 | Destroyed Architect 62526 | -1/Access_0 | Extracted unknown sensor trigger ID from Architect's data core 62527 | -1/Access_0 | Found Prototype Protection 62527 | -1/Access_0 | Identified Centrium Linked Plating 62529 | -1/Access_0 | Found Prototype Hackware 62529 | -1/Access_0 | Identified Architect God Chip A 62532 | -1/Access_0 | Found Prototype Hackware 62532 | -1/Access_0 | Identified Architect God Chip D 62540 | -1/Access_0 | Found Hpw. Transdimensional Reconstructor 62542 | -1/Access_0 | Found Architect God Chip A 62543 | -1/Access_0 | Found Architect God Chip D 62697 | -1/Access_0 | A3 warped into view 62698 | -1/Access_0 | Sigix Exoskeleton integrity reduced to 40% 62707 | -1/Access_0 | Destroyed A3 62756 | -1/Access_0 | Found Integrated Mediator 62756 | -1/Access_0 | Installed Integrated Mediator, increased core attachment efficiency 62832 | -1/Access_0 | Found Sigix Corpse 62841 | -1/Access_0 | Warped through subspace to slip node 62841 | -1/Access_0 | Discovered new exit (range 8) 62842 | -1/Access_0 | Found Hpw. Transdimensional Reconstructor 62842 | -1/Access_0 | Warped through subspace to slip node 62851 | *** | Heading to fleet! Last Messages --------------- 62820_ Quantum Shear penetrates Workstation. 62820_ Workstation disabled. 62820_ Quantum Shear penetrates Earth. 62828_ Quantum Shear penetrates Analysis Chamber. 62828_ Analysis Chamber breached. 62828_ Quantum Shear penetrates Analysis Chamber. 62828_ Quantum Shear penetrates Earth. 62828_ Quantum Shear penetrates Analysis Chamber. 62828_ Quantum Shear penetrates Earth. 62830_ Dropped Graphene Brace. 62832_ Acquired Sigix Corpse. 62841_ Warped through subspace, drawn to slip node. 62841_ EXIT=FOUND 62842_ Acquired Hpw. Transdimensional Reconstructor. 62842_ Warped through subspace, drawn to slip node. 62847_ Quantum Shear penetrates Dimensional Slip Node. 62847_ Dimensional Slip Node implodes. 62847_ Quantum Shear penetrates Wall. 62847_ Quantum Shear penetrates Earth. 62850_ The unstable cave ceiling collapses. Map ----- +----------------------------------------------------+ | | | | | | | | | | | | | | | | | | | | | | | | | | | | | | | | | ????????#################################????????? | | ????????#################################????????? | | ????????#################################????????? | | ???????###################################???????? | | ???????###################################???????? | | ???????###################################???????? | | ???????###################################???????? | | ???????################## ################???????? | | ??????################## ################??????? | | ??????################## X ################??????? | | ??????################## ################??????? | | ???????############### ###############???????? | | ???????############# # #############???????? | | ??????############## ##############??????? | | ???????############ ############???????? | | ???????############ ############???????? | | ??????############# #############??????? | | ???????############ ############???????? | | ???????############ ############???????? | | ???????############# #############???????? | | ???????############# #############???????? | | ???????############### ###############???????? | | ????????############### ###############????????? | | ????????############### ;;###############????????? | | ????????################ ################????????? | | ?????????############### ###############?????????? | | ??????????#############################??????????? | | ??????????#############################??????????? | | ???????????###########################???????????? | | ????????????#########################????????????? | | ?????????????#######################?????????????? | | ???????????????###################???????????????? | | ????????????????#################????????????????? | | ???????????????????###########???????????????????? | +----------------------------------------------------+ Best States ------------- Heat Dissipation 219 Energy Generation 88 Energy Capacity 2175 Matter Stores 300 Matter Capacity 450 Sight Range 23 Robot Scan Range 20 Terrain Scan Density 10 Jamming Range 16 Power Amplification 20 Additional Mass Support 20 EM Shielding 4 Corruption Containment 12 Armor Coverage 1200 Resistance: KI 50 Resistance: TH 50 Resistance: EX 50 Resistance: EM 50 Resistance: I 50 Resistance: S 50 Resistance: P 50 Weapon Shielding 100 Weapon Cycling 30 Phase Shifting 20 Evasion (%) 96 Targeting Accuracy 20 Target Analysis 10 Core Analysis 12 Armor Integrity Analysis 50 Recoil Reduction 4 Matter Filtering 30 Particle Charging 25 Kinecelleration 50 Offensive Hacking 100 Defensive Hacking 20 Authchip Count 8 Item Schematics ----------------- None Robot Schematics ------------------ C-55 Analyst | -2/Section 7 | Archive P-80 Master | -2/Section 7 | Archive Fabricated ------------ Huge Storage Unit | x1 | -7/Factory Exp. Sensor Array | x1 | -6/Factory Combat Drone Bay | x1 | -5/Factory Weapon Mount | x2 | -4/Factory Weapon Mount | x2 | -4/Factory G-67 Veteran | x3 | -3/Armory | Authchip Alien Tech Used ----------------- Core Expander Phase Redirector Sigix Broadsword Core Reset Matrix Core Stripper Microwarp Drive Subatomic Replicator Supercharged Integrated Dissipator Integrated Dissipator LRC Armor LRC Energy Well Sigix Exoskeleton Sigix Sheargun Sigix Shearcannon Transdimensional Reconstructor Spacefold Activator Terrabomb Integrated Reactor Core Regenerator Integrated Mediator High-powered Transdimensional Reconstructor Achievements -------------- None Challenges ------------ None Game ------ Seed ScatterDispersionDevice Manual? 0 Play Time 08:33:47 Cumulative 516.6 hours Start 2024.02.04 @ 15:05:03 End 2024.02.05 @ 19:27:39 Sessions 3 Manual Loads 0 Difficulty Rogue Special Mode None Game No. 177 Rogue 162 Adventurer 15 Explorer 0 Win Type 2 Total 32 Types 9/3/9/2/2/0/4/2/1 Lore% 93 Gallery% 94 Achievement% 83 Wizard Run 0 Options --------- ASCII 0 Keyboard 0 Movement Numpad Keybinds 0 Fullscreen 1 Font 18/SmallcapsGlow Map View 76x50 Zoom Use 0% Tactical HUD 1 Map Filters NONE Filters NONE Steam 1 RUN: 4de7b1f0-9930-4351-bb76-a0b00fbcbd9d